Workbook

Sheet Certificación Relación Mensual
A1: IdN | B1: ACHE | C1: Proc | D1: Num | F1: Meses | G1: 7 | H1: 8 | I1: 9 | J1: 10 | K1: 11 | L1: 12 | M1: 1 | N1: 2 | O1: 3 | P1: 4 | Q1: Xornada | R1: Achega | S1: Dias | T1: Contía | U1: %CV | V1: Diascv | W1: Vacacións | X1: NÓMINA | Z1: IT | AA1: Baixa | AQ1: 1 | AR1: 2 | AS1: 3 | AT1: 4 | AU1: 5 | AV1: 6 | AW1: 7 | AX1: 8 | AY1: 9 | AZ1: 10 | BA1: 11 | BB1: 12 | BC1: 13 | BD1: 14 | BE1: 15 | BF1: 16 | BG1: 17 | BH1: 18 | BI1: 19 | BJ1: 20 | BK1: 21 | BL1: 22 | BM1: 23 | BN1: 24 | BO1: 25 | BP1: 26 | BQ1: 27 | BR1: 28 | BS1: =IF(DAY(VALUE(1&"-"&$AC$7&"-"&$AD$7)-1)>28,29,"") -> 29 | BT1: =IF(DAY(VALUE(1&"-"&$AC$7&"-"&$AD$7)-1)>29,30,"") -> 30 | BU1: =IF(DAY(VALUE(1&"-"&$AC$7&"-"&$AD$7)-1)>30,31,"") -> 31 | BV1: Trab. | BW1: Baixa | CB1: inimes | CC1: finmes | CD1: diasnomina | CE1: diasbaixa | CF1: dbaixa | CG1: dalta | CH1: dbaixaat | CI1: dbaixait | CJ1: Dias baixa mes | CK1: Diasconsumidos | CL1: Totdiasbaixa | CM1: ya subv. | CN1: Pedientes | CO1: DatainiCV | CP1: DiasCV | CQ1: 1ºS 3 | CR1: resto | CS1: os 12 | CT1: - os 3 1ºS | CU1: os 12 | CV1: Pago | CW1: Alt | CX1: Baix | CY1: NÓMINA | DB1: Data_nómina
A2: area de impresión | G2: C.E.E. Solicitante | AJ2: Xullo | AK2: Agosto | AL2: Setembro | AM2: Outubro | AN2: Novembro
A3: de | D3: A1 | G3: DNI/NIF: | O3: NºExp | V3: Certificación mensual da relación do cadro de persoal c/discapaciade | AJ3: 7 | AK3: 8 | AL3: 9 | AM3: 10 | AN3: 11
A4: a | D4: ="AV"&IF(MAXA(A2:A60)=0,11,11+MAXA(A12:A60)) -> AV11 | G4: Nome da persoa representante: | AJ4: Xullo | AK4: Agosto | AL4: Setembro | AM4: Outubro | AN4: Novembro
G5: Tipo de Axuda: Subvencion para a financiación do custo salarial de todas a persoas traballadoras con discapacidade contratadas en C.E.E. do territorio da Comunadade Autónoma de Galicia | AD5: =VALUE(1&"-"&$AC$7&"-"&$AD$7)-1 -> 2023-07-31 | AP5: =IF(IFERROR(VLOOKUP(#REF!,$AC$12:$AC$60,1,FALSE),"")="","",1) -> 
F6: Desde | G6: =IF($AD$5=VALUE(30&"/"&6&"/"&YEAR($AD$5)),"Verán",IF($AD$5=VALUE(31&"/"&12&"/"&YEAR($AD$5)),"Inverno","")) ->  | H6: Data_nómina | N6: 50%SMI | O6: 60%SMI | Q6: Programa III: Programa de axudas ao mantemento do custo salarial nos C.E.E. (Procedemento TR341M) | AC6: mes | AD6: ano | AQ6: =VALUE(AQ11&"/"&MONTH($AD$5)&"/"&YEAR($AD$5)) -> 2023-07-01 | AR6: 2023-07-02 | AS6: 2023-07-03 | AT6: 2023-07-04 | AU6: 2023-07-05 | AV6: 2023-07-06 | AW6: 2023-07-07 | AX6: 2023-07-08 | AY6: 2023-07-09 | AZ6: 2023-07-10 | BA6: 2023-07-11 | BB6: 2023-07-12 | BC6: 2023-07-13 | BD6: 2023-07-14 | BE6: 2023-07-15 | BF6: 2023-07-16 | BG6: 2023-07-17 | BH6: 2023-07-18 | BI6: 2023-07-19 | BJ6: 2023-07-20 | BK6: 2023-07-21 | BL6: 2023-07-22 | BM6: 2023-07-23 | BN6: 2023-07-24 | BO6: 2023-07-25 | BP6: 2023-07-26 | BQ6: 2023-07-27 | BR6: 2023-07-28 | BS6: 2023-07-29 | BT6: 2023-07-30 | BU6: 2023-07-31 | CH6: SI(AK13="AT";CO13;0) | CT6: Convenio
A7: Novo | B7: Tot. Trab. CEE/RNT | F7: Certificación do cadro de | H7: =VALUE("1/"&HLOOKUP(G8,Z2:AN3,2,FALSE)&"/"&(IF(HLOOKUP(G8,Z2:AN3,2,FALSE)<7,YEAR(AA7)+1,YEAR(AA7)))) -> 2023-07-01 | J7: Certificación comprobada | M7: Si | N7: =COUNTIFS($I$11:$I$61,P7,$B$11:$B$61,0,$X$11:$X$61,"SI") -> 0 | O7: =COUNTIFS($I$11:$I$61,P7,$B$11:$B$61,1,$X$11:$X$61,"SI") -> 0 | P7: H | Q7: T. Achega mes | T7: =VALUE(SUBTOTAL(109,T11:T61)) -> 0 | U7: T.c.Vacacións | W7: =SUBTOTAL(9,W11:W61) -> 0 | Y7: Periodo | AA7: 2023-07-01 | AC7: =IF(MONTH(T8)+1>12,MONTH(T8)+1-12,MONTH(T8)+1) -> 8 | AD7: =IF(MONTH(T8)+1>12,YEAR(T8)+1,YEAR(T8)) -> 2023 | AK7: Anexo X | BX7: IT | BY7: 15
A8: IdX | B8: % Trab. c/discap. | E8: =IFERROR(T9/E7,0) -> 0 | F8: persoal do mes de | G8: Xullo | J8: Calculo correcto? | M8: Si | N8: =COUNTIFS($I$11:$I$61,P8,$B$11:$B$61,0,$X$11:$X$61,"SI") -> 0 | O8: =COUNTIFS($I$11:$I$61,P8,$B$11:$B$61,1,$X$11:$X$61,"SI") -> 0 | P8: M | Q8: T.P.Trab | S8: =SUM(N7:O8) -> 0 | T8: =H7 -> 2023-07-01 | U8: Tot. Certificación mes de | Y8: Convc.Axudas | AB8: =(DAY(AA7)&"/"&(VALUE(MONTH(AA7))+5)&"/"&YEAR(AA7))-1 -> 2023-11-30 | AC8: mes | BX8: AT | BY8: 1 | CA8: =CT8 -> NON | CT8: =AB9 -> NON
A9: =MAXA(A11:A61)+1 -> 1 | B9: G | C9: Cod | D9: Salario mes | E9: Nº Rexistro | Q9: Tot. P. Trab. mes | T9: =COUNTIF(X11:X61,"SI") -> 0 | U9: =G8 -> Xullo | W9: =W7+T7 -> 0 | AA9: Conv. IT | AB9: NON | BX9: Total | BY9: Días | BZ9: Días | CA9: Días
A10: IdX | D10: Convenio | E10: ou data pub | F10: Traballador | H10: Data | M10: Data | N10: Data | O10: Código | P10: Tipo | Q10: % | R10: Tipo | T10: Achega | U10: % | W10: Comp. | Y10: Dias | Z10: IT | AA10: I T / A T | AC10: Conv | AG10: Xust | AI10: INF. | AJ10: Copia | AK10: Comun. | AL10: Anexo | AO10: Anexo | AQ10: C | AR10: A | AS10: L | AT10: E | AU10: N | AV10: D | AW10: A | AX10: R | AY10: I | AZ10: O | BB10: D | BC10: E | BE10: T | BF10: R | BG10: A | BH10: B | BI10: A | BJ10: L | BK10: L | BL10: O | BN10: D | BO10: O | BQ10: M | BR10: E | BS10: S | BV10: Días | BW10: Días | BX10: Días | BY10: Baixa | BZ10: Baixa | CA10: Baixa | CQ10: tres primeros
A11: IdN | B11: D | C11: RNT | D11: Colectivo | E11: Conv. Colect | F11: (Apelido1 Apelido2, Nome) | G11: N.I.F. | H11: Nacemento | I11: sexo | J11: Discapacidade | K11: Grao | L11: Tipo | M11: Alta | N11: Baixa | O11: Contrato | P11: Cont | Q11: Xornada | R11: Achega | S11: Días | T11: Mensual | U11: Xornada2 | V11: Días3 | W11: Vacacións | X11: Certific4 | Y11: Absentism | Z11: AT | AA11: Baixa5 | AB11: Alta | AC11: Baixa6 | AD11: Interindade | AE11: Observacións | AF11: Nómina | AG11: Pago | AH11: TC2 | AI11: IDC | AJ11: Cto | AK11: SEPE | AL11: XI | AM11: IDC7 | AN11: TA2 | AO11: XII | AP11: Columna8 | AQ11: 1 | AR11: 2 | AS11: 3 | AT11: 4 | AU11: 5 | AV11: 6 | AW11: 7 | AX11: 8 | AY11: 9 | AZ11: 10 | BA11: 11 | BB11: 12 | BC11: 13 | BD11: 14 | BE11: 15 | BF11: 16 | BG11: 17 | BH11: 18 | BI11: 19 | BJ11: 20 | BK11: 21 | BL11: 22 | BM11: 23 | BN11: 24 | BO11: 25 | BP11: 26 | BQ11: 27 | BR11: 28 | BS11: 29 | BT11: 30 | BU11: 31 | BV11: Trab. | BW11: Baixa9 | BX11: Baixa10 | BY11: Acum | BZ11: xa sub | CA11: Pend | CB11: inimes | CC11: finmes | CD11: diasnomina | CE11: diasbaixa | CF11: dbaixa | CG11: dalta | CH11: dbaixaat | CI11: dbaixait | CJ11: Dias baixa mes | CK11: Diasconsumidos | CL11: Totdiasbaixa | CM11: ya subv. | CN11: Pedientes | CO11: DatainiCV | CP11: DiasCV | CQ11: 1ºS 3 | CR11: resto | CS11: os 12 | CT11: - os 3 1ºS | CU11: os 1211 | CV11: Pago12 | CW11: Alt | CX11: Baix | CY11: Certific | CZ11: 52 | DA11: 105 | DB11: Data_nómina | DC11: Columna13
B12: =IF(AND(J12="",K12=""),"",IF(K12>=65,1,IF(AND(K12>=33,OR(J12="P. Cerebral",J12="Enf. Mental",J12="D. Intelectual",J12="Psíquica")),1,0))) ->  | C12: =IFERROR(MID(F12,1,2)&(MID(F12,FIND(" ",F12,1)+1,2))&IFERROR((MID(F12,FIND(",",F12,1)+2,1)),MID(F12,FIND(" ",F12,FIND(" ",F12,1)+1)+1,1)),"") ->  | P12: =IFERROR(VLOOKUP(O12,Importes!K:P,2,FALSE),"") ->  | R12: AM+E | S12: =IFERROR(IF(OR(CV12="AAINT",CV12="ALINT",CV12="AA",CV12="AL"),CD12,""),"") -> 0 | T12: =IFERROR(ROUND(IF(MOD(S12,30)=0,QUOTIENT(S12,30)*VLOOKUP(B12&"AM+E",Importes!$A$2:$F$14,6,FALSE)*(IF($Q12>100,0,$Q12)/100),S12*VLOOKUP(B12&"AM+E",Importes!$A$2:$F$14,5,FALSE)*(IF($Q12>100,0,$Q12)/100)),2),0) -> 0 | U12: =IFERROR(IF(V12="","",Q12),"") ->  | V12: =IFERROR(IF(OR(CV12="ALINT",CV12="AL"),CP12,""),"") ->  | W12: =IF(V12="","",IF(V12>0,ROUND(IF(MOD(V12,30)=0,QUOTIENT(V12,30)*VLOOKUP(B12&"AM+E",Importes!$A$2:$F$14,6,FALSE)*(IF($U12>100,0,$U12)/100),V12*VLOOKUP(B12&"AM+E",Importes!$A$2:$F$14,5,FALSE)*(IF($U12>100,0,$U12)/100)),2),0)) ->  | X12: =IFERROR(IF(CY12="NO","",CY12),"") ->  | AA12: =IF(Z12="IT",M12,IF(Z12="AT",M12,"")) ->  | AB12: =IF(AND(AA12<>"",N12>0),N12,"") ->  | AC12: Si | AF12: =IF($T12>0,"X","") ->  | AP12: =IF(IFERROR(VLOOKUP(G12,$AD$12:$AD$60,1,FALSE),"")="","",1) ->  | AQ12: =IF(VALUE($A12)=0,"",IF(AQ$11="","",IF($N12<AQ$6,"",IF($M12>AQ$6,"",IF(AND(OR($N12="",$N12>=AQ$6),$AA12="",$R12<>""),"F",IF(AND($AA12<=AQ$6,OR($AB12=$N12,$AB12>=AQ$6,IF($AB12="",$AD$5))),"h",IF($CC12>=AQ$6,"F",""))))))) ->  | BA12: =IF(VALUE($A12)=0,"",IF(BA$11="","",IF($N12<BA$6,"",IF($M12>BA$6,"",IF(AND(OR($N12="",$N12>=BA$6),$AA12="",$R12<>""),"F",IF(AND($AA12<=BA$6,OR($AB12=$N12,$AB12>=BA$6,IF($AB12="",$AD$5))),"h",IF($CC12>=BA$6,"F",""))))))) ->  | BK12: =IF(VALUE($A12)=0,"",IF(BK$11="","",IF($N12<BK$6,"",IF($M12>BK$6,"",IF(AND(OR($N12="",$N12>=BK$6),$AA12="",$R12<>""),"F",IF(AND($AA12<=BK$6,OR($AB12=$N12,$AB12>=BK$6,IF($AB12="",$AD$5))),"h",IF($CC12>=BK$6,"F",""))))))) ->  | BV12: =IF(COUNTIF(AP12:BU12,"F")=0,0,COUNTIF(AP12:BU12,"F")) -> 0 | BW12: =IF(COUNTIF(AP12:BU12,"h")=0,0,COUNTIF(AP12:BU12,"h")) -> 0 | BX12: =IF(OR(Z12="IT",Z12="AT"),CG12+1-(CF12),0) -> 0 | BY12: =IF(Z12="AT",1,IF(IF(Z12="IT",CG12+1-(CF12),0)>15,15,IF(Z12="IT",CG12+1-(CF12),0))) -> 0 | BZ12: =IF(Z12="IT",IF(BX12-BW12>15,15,BX12-BW12),IF(Z12="AT",IF(BX12-BW12>1,1,BX12-BW12),0)) -> 0 | CA12: =IF(OR(AC12="SI",$CA$8="SI"),BY12-BZ12,IF(AND(AC12<>"SI",OR($CA$8="NON",$CA$8="<<>>")),IF(BZ12<=3,IF(BY12-BZ12-3<=0,IF(Z12="AT",IF(BZ12=1,0,1),0),BY12-BZ12-(3-BZ12)),BY12-BZ12),0)) -> 0 | CB12: =IF(M12<$T$8,$T$8,M12) -> 2023-07-01 | CC12: =IF(N12="",$AD$5,N12) -> 2023-07-31 | CD12: =IF(BV12+CE12>30,30,IF(AND(MONTH($H$7)=2,BV12>=DAY($AD$5),OR(AA12="",AA12<=$H$7)),30,IF(BV12+CA12>30,30,BV12+CA12))) -> 0 | CE12: =CN12 -> 0 | CF12: =IF(Z12="at",IF(CH12<$AA$7,CH12,IF(CH12<$T$8,$T$8-1,CH12)),CI12) -> 2023-01-01 | CG12: =IF(OR(AB12="",AB12>$AD$5),IF(N12="",$AD$5,IF(N12>$AD$5,$AD$5,N12)),AB12) -> 2023-07-31 | CH12: =IF(Z12="AT",CI12,0) -> 00:00:00 | CI12: =IF(IF(AA12="",0,AA12)+3=3,VALUE(1&"-"&1&"-"&$AD$7),AA12) -> 2023-01-01 | CJ12: =BW12 -> 0 | CK12: =IF(OR(Z12="IT",Z12="AT"),IF(CF12<CB12,CB12-(CF12),0),0) -> 0 | CL12: =IF(OR(Z12="IT",Z12="AT"),CG12+1-(CF12),0) -> 0 | CM12: =IF(OR(Z12="IT",Z12="AT"),IF(CK12>=15,12,IF(CK12<15,CK12,CK12-3)),0) -> 0 | CN12: =IF(AND(Z12="AT",CL12-CJ12=0),1,IF(Z12="IT",CU12,0)) -> 0 | CO12: =IF(M12<VALUE(1&"-"&1&"-"&IF(YEAR($AD$5)<$AD$7,YEAR($AD$5),$AD$7)),VALUE(1&"-"&1&"-"&IF(YEAR($AD$5)<$AD$7,YEAR($AD$5),$AD$7)),M12) -> 2023-01-01 | CP12: =IF(N12="",0,(DAYS360(CO12,N12)+1)/30*2.5) -> 0 | CQ12: =IF(CM12>=3,3,CM12) -> 0 | CR12: =IF(OR($CT$8="SI",$AC12="SI"),CQ12,3-CQ12) -> 0 | CS12: =IF(CK12>15,IF(OR($CT$8="SI",$AC12="SI"),15,12),IF(OR($CT$8="SI",$AC12="SI"),CK12,CK12-CQ12)) -> 0 | CT12: =IF(CL12-CR12-CQ12<0,0,IF(CL12-CR12-CQ12>12,IF(OR($CT$8="SI",$AC12="SI"),15,12),IF(CL12-CR12-CQ12>BW12,BW12-CR12,CL12-CR12-CQ12))) -> 0 | CU12: =IF(CT12-CS12>=IF(OR($CT$8="SI",$AC12="SI"),15,12),IF(OR($CT$8="SI",$AC12="SI"),15,12),CT12-CS12) -> 0 | CV12: =CW12&CX12&IF(OR(O12=510,O12=410),"INT","") -> AA | CW12: =IF(YEAR(M12)<YEAR($H$7),"A",IF(YEAR(M12)=YEAR($H$7),IF(MONTH(M12)<=MONTH($H$7),"A","NO"))) -> A | CX12: =IF(N12="","A",IF(YEAR(N12)>YEAR($H$7),"A",IF(YEAR(N12)=YEAR($H$7),IF(MONTH(N12)>MONTH($H$7),"A",IF(MONTH(N12)=MONTH($H$7),"L","B"))))) -> A | CY12: =IFERROR(IF(L12<33,"NO",IF(OR(CV12="AA",CV12="AL"),"SI",IF(OR(CV12="AAINT",CV12="ALINT"),"SI"))),"") -> NO | CZ12: =IF(COLUMN()>0,5,5) -> 5 | DA12: =IFERROR(IF(AND(F12>0,G12>0),7,0),7) -> 0 | DB12: =IFERROR(IF(CY12="SI",$H$7,""),0) -> 
B13: =IF(AND(J13="",K13=""),"",IF(K13>=65,1,IF(AND(K13>=33,OR(J13="P. Cerebral",J13="Enf. Mental",J13="D. Intelectual",J13="Psíquica")),1,0))) ->  | C13: =IFERROR(MID(F13,1,2)&(MID(F13,FIND(" ",F13,1)+1,2))&IFERROR((MID(F13,FIND(",",F13,1)+2,1)),MID(F13,FIND(" ",F13,FIND(" ",F13,1)+1)+1,1)),"") ->  | P13: =IFERROR(VLOOKUP(O13,Importes!K:P,2,FALSE),"") ->  | R13: AM+E | S13: 0 | T13: =IFERROR(ROUND(IF(MOD(S13,30)=0,QUOTIENT(S13,30)*VLOOKUP(B13&"AM+E",Importes!$A$2:$F$14,6,FALSE)*(IF($Q13>100,0,$Q13)/100),S13*VLOOKUP(B13&"AM+E",Importes!$A$2:$F$14,5,FALSE)*(IF($Q13>100,0,$Q13)/100)),2),0) -> 0 | W13: =IF(V13="","",IF(V13>0,ROUND(IF(MOD(V13,30)=0,QUOTIENT(V13,30)*VLOOKUP(B13&"AM+E",Importes!$A$2:$F$14,6,FALSE)*(IF($U13>100,0,$U13)/100),V13*VLOOKUP(B13&"AM+E",Importes!$A$2:$F$14,5,FALSE)*(IF($U13>100,0,$U13)/100)),2),0)) ->  | AC13: Si | BV13: =IF(COUNTIF(AP13:BU13,"F")=0,0,COUNTIF(AP13:BU13,"F")) -> 0 | BW13: =IF(COUNTIF(AP13:BU13,"h")=0,0,COUNTIF(AP13:BU13,"h")) -> 0 | BX13: 0 | BY13: 0 | BZ13: 0 | CA13: 0 | CB13: 2023-07-01 | CC13: 2023-07-31 | CD13: 0 | CE13: =CN13 -> 0 | CF13: 2023-01-01 | CG13: 2023-07-31 | CH13: 00:00:00 | CI13: 2023-01-01 | CJ13: =BW13 -> 0 | CK13: 0 | CL13: 0 | CM13: 0 | CN13: 0 | CO13: 2023-01-01 | CP13: 0 | CQ13: 0 | CR13: 0 | CS13: 0 | CT13: 0 | CU13: 0 | CV13: AA | CW13: A | CX13: A | CY13: NO | CZ13: 5 | DA13: =IFERROR(IF(AND(F13>0,G13>0),7,0),7) -> 0 | DB13: =IFERROR(IF(CY13="SI",$H$7,""),0) -> 
P14: =IFERROR(VLOOKUP(O14,Importes!K:P,2,FALSE),"") ->  | R14: AM+E | S14: 0 | T14: =IFERROR(ROUND(IF(MOD(S14,30)=0,QUOTIENT(S14,30)*VLOOKUP(B14&"AM+E",Importes!$A$2:$F$14,6,FALSE)*(IF($Q14>100,0,$Q14)/100),S14*VLOOKUP(B14&"AM+E",Importes!$A$2:$F$14,5,FALSE)*(IF($Q14>100,0,$Q14)/100)),2),0) -> 0 | U14: =IFERROR(IF(V14="","",Q14),"") ->  | V14: =IFERROR(IF(OR(CV14="ALINT",CV14="AL"),CP14,""),"") ->  | W14: =IF(V14="","",IF(V14>0,ROUND(IF(MOD(V14,30)=0,QUOTIENT(V14,30)*VLOOKUP(B14&"AM+E",Importes!$A$2:$F$14,6,FALSE)*(IF($U14>100,0,$U14)/100),V14*VLOOKUP(B14&"AM+E",Importes!$A$2:$F$14,5,FALSE)*(IF($U14>100,0,$U14)/100)),2),0)) ->  | X14: =IFERROR(IF(CY14="NO","",CY14),"") ->  | AA14: =IF(Z14="IT",M14,IF(Z14="AT",M14,"")) ->  | AB14: =IF(AND(AA14<>"",N14>0),N14,"") ->  | AC14: Si | BV14: 0 | BW14: 0 | BX14: 0 | BY14: 0 | BZ14: 0 | CA14: 0 | CB14: 2023-07-01 | CC14: 2023-07-31 | CD14: 0 | CE14: 0 | CF14: 2023-01-01 | CG14: 2023-07-31 | CH14: 00:00:00 | CI14: 2023-01-01 | CJ14: 0 | CK14: 0 | CL14: 0 | CM14: 0 | CN14: 0 | CO14: 2023-01-01 | CP14: 0 | CQ14: 0 | CR14: 0 | CS14: 0 | CT14: 0 | CU14: 0 | CV14: AA | CW14: A | CX14: A | CY14: NO | CZ14: 5 | DA14: 0
P15: =IFERROR(VLOOKUP(O15,Importes!K:P,2,FALSE),"") ->  | R15: AM+E | S15: 0 | T15: =IFERROR(ROUND(IF(MOD(S15,30)=0,QUOTIENT(S15,30)*VLOOKUP(B15&"AM+E",Importes!$A$2:$F$14,6,FALSE)*(IF($Q15>100,0,$Q15)/100),S15*VLOOKUP(B15&"AM+E",Importes!$A$2:$F$14,5,FALSE)*(IF($Q15>100,0,$Q15)/100)),2),0) -> 0 | W15: =IF(V15="","",IF(V15>0,ROUND(IF(MOD(V15,30)=0,QUOTIENT(V15,30)*VLOOKUP(B15&"AM+E",Importes!$A$2:$F$14,6,FALSE)*(IF($U15>100,0,$U15)/100),V15*VLOOKUP(B15&"AM+E",Importes!$A$2:$F$14,5,FALSE)*(IF($U15>100,0,$U15)/100)),2),0)) ->  | AC15: Si | BV15: 0 | BW15: 0 | BX15: 0 | BY15: 0 | BZ15: 0 | CA15: 0 | CB15: 2023-07-01 | CC15: 2023-07-31 | CD15: 0 | CE15: 0 | CF15: 2023-01-01 | CG15: 2023-07-31 | CH15: 00:00:00 | CI15: 2023-01-01 | CJ15: 0 | CK15: 0 | CL15: 0 | CM15: 0 | CN15: 0 | CO15: 2023-01-01 | CP15: 0 | CQ15: 0 | CR15: 0 | CS15: 0 | CT15: 0 | CU15: 0 | CV15: AA | CW15: A | CX15: A | CY15: NO | CZ15: 5 | DA15: 0
P16: =IFERROR(VLOOKUP(O16,Importes!K:P,2,FALSE),"") ->  | R16: AM+E | S16: 0 | T16: =IFERROR(ROUND(IF(MOD(S16,30)=0,QUOTIENT(S16,30)*VLOOKUP(B16&"AM+E",Importes!$A$2:$F$14,6,FALSE)*(IF($Q16>100,0,$Q16)/100),S16*VLOOKUP(B16&"AM+E",Importes!$A$2:$F$14,5,FALSE)*(IF($Q16>100,0,$Q16)/100)),2),0) -> 0 | W16: =IF(V16="","",IF(V16>0,ROUND(IF(MOD(V16,30)=0,QUOTIENT(V16,30)*VLOOKUP(B16&"AM+E",Importes!$A$2:$F$14,6,FALSE)*(IF($U16>100,0,$U16)/100),V16*VLOOKUP(B16&"AM+E",Importes!$A$2:$F$14,5,FALSE)*(IF($U16>100,0,$U16)/100)),2),0)) ->  | AC16: Si | BV16: 0 | BW16: 0 | BX16: 0 | BY16: 0 | BZ16: 0 | CA16: 0 | CB16: 2023-07-01 | CC16: 2023-07-31 | CD16: 0 | CE16: 0 | CF16: 2023-01-01 | CG16: 2023-07-31 | CH16: 00:00:00 | CI16: 2023-01-01 | CJ16: 0 | CK16: 0 | CL16: 0 | CM16: 0 | CN16: 0 | CO16: 2023-01-01 | CP16: 0 | CQ16: 0 | CR16: 0 | CS16: 0 | CT16: 0 | CU16: 0 | CV16: AA | CW16: A | CX16: A | CY16: NO | CZ16: 5 | DA16: 0
P17: =IFERROR(VLOOKUP(O17,Importes!K:P,2,FALSE),"") ->  | R17: AM+E | S17: 0 | T17: =IFERROR(ROUND(IF(MOD(S17,30)=0,QUOTIENT(S17,30)*VLOOKUP(B17&"AM+E",Importes!$A$2:$F$14,6,FALSE)*(IF($Q17>100,0,$Q17)/100),S17*VLOOKUP(B17&"AM+E",Importes!$A$2:$F$14,5,FALSE)*(IF($Q17>100,0,$Q17)/100)),2),0) -> 0 | W17: =IF(V17="","",IF(V17>0,ROUND(IF(MOD(V17,30)=0,QUOTIENT(V17,30)*VLOOKUP(B17&"AM+E",Importes!$A$2:$F$14,6,FALSE)*(IF($U17>100,0,$U17)/100),V17*VLOOKUP(B17&"AM+E",Importes!$A$2:$F$14,5,FALSE)*(IF($U17>100,0,$U17)/100)),2),0)) ->  | AC17: Si | BV17: 0 | BW17: 0 | BX17: 0 | BY17: 0 | BZ17: 0 | CA17: 0 | CB17: 2023-07-01 | CC17: 2023-07-31 | CD17: 0 | CE17: 0 | CF17: 2023-01-01 | CG17: 2023-07-31 | CH17: 00:00:00 | CI17: 2023-01-01 | CJ17: 0 | CK17: 0 | CL17: 0 | CM17: 0 | CN17: 0 | CO17: 2023-01-01 | CP17: 0 | CQ17: 0 | CR17: 0 | CS17: 0 | CT17: 0 | CU17: 0 | CV17: AA | CW17: A | CX17: A | CY17: NO | CZ17: 5 | DA17: 0
P18: =IFERROR(VLOOKUP(O18,Importes!K:P,2,FALSE),"") ->  | R18: AM+E | S18: 0 | T18: =IFERROR(ROUND(IF(MOD(S18,30)=0,QUOTIENT(S18,30)*VLOOKUP(B18&"AM+E",Importes!$A$2:$F$14,6,FALSE)*(IF($Q18>100,0,$Q18)/100),S18*VLOOKUP(B18&"AM+E",Importes!$A$2:$F$14,5,FALSE)*(IF($Q18>100,0,$Q18)/100)),2),0) -> 0 | W18: =IF(V18="","",IF(V18>0,ROUND(IF(MOD(V18,30)=0,QUOTIENT(V18,30)*VLOOKUP(B18&"AM+E",Importes!$A$2:$F$14,6,FALSE)*(IF($U18>100,0,$U18)/100),V18*VLOOKUP(B18&"AM+E",Importes!$A$2:$F$14,5,FALSE)*(IF($U18>100,0,$U18)/100)),2),0)) ->  | AC18: Si | BV18: 0 | BW18: 0 | BX18: 0 | BY18: 0 | BZ18: 0 | CA18: 0 | CB18: 2023-07-01 | CC18: 2023-07-31 | CD18: 0 | CE18: 0 | CF18: 2023-01-01 | CG18: 2023-07-31 | CH18: 00:00:00 | CI18: 2023-01-01 | CJ18: 0 | CK18: 0 | CL18: 0 | CM18: 0 | CN18: 0 | CO18: 2023-01-01 | CP18: 0 | CQ18: 0 | CR18: 0 | CS18: 0 | CT18: 0 | CU18: 0 | CV18: AA | CW18: A | CX18: A | CY18: NO | CZ18: 5 | DA18: 0
P19: =IFERROR(VLOOKUP(O19,Importes!K:P,2,FALSE),"") ->  | R19: AM+E | S19: 0 | T19: =IFERROR(ROUND(IF(MOD(S19,30)=0,QUOTIENT(S19,30)*VLOOKUP(B19&"AM+E",Importes!$A$2:$F$14,6,FALSE)*(IF($Q19>100,0,$Q19)/100),S19*VLOOKUP(B19&"AM+E",Importes!$A$2:$F$14,5,FALSE)*(IF($Q19>100,0,$Q19)/100)),2),0) -> 0 | W19: =IF(V19="","",IF(V19>0,ROUND(IF(MOD(V19,30)=0,QUOTIENT(V19,30)*VLOOKUP(B19&"AM+E",Importes!$A$2:$F$14,6,FALSE)*(IF($U19>100,0,$U19)/100),V19*VLOOKUP(B19&"AM+E",Importes!$A$2:$F$14,5,FALSE)*(IF($U19>100,0,$U19)/100)),2),0)) ->  | AC19: Si | BV19: 0 | BW19: 0 | BX19: 0 | BY19: 0 | BZ19: 0 | CA19: 0 | CB19: 2023-07-01 | CC19: 2023-07-31 | CD19: 0 | CE19: 0 | CF19: 2023-01-01 | CG19: 2023-07-31 | CH19: 00:00:00 | CI19: 2023-01-01 | CJ19: 0 | CK19: 0 | CL19: 0 | CM19: 0 | CN19: 0 | CO19: 2023-01-01 | CP19: 0 | CQ19: 0 | CR19: 0 | CS19: 0 | CT19: 0 | CU19: 0 | CV19: AA | CW19: A | CX19: A | CY19: NO | CZ19: 5 | DA19: 0
P20: =IFERROR(VLOOKUP(O20,Importes!K:P,2,FALSE),"") ->  | R20: AM+E | S20: 0 | T20: =IFERROR(ROUND(IF(MOD(S20,30)=0,QUOTIENT(S20,30)*VLOOKUP(B20&"AM+E",Importes!$A$2:$F$14,6,FALSE)*(IF($Q20>100,0,$Q20)/100),S20*VLOOKUP(B20&"AM+E",Importes!$A$2:$F$14,5,FALSE)*(IF($Q20>100,0,$Q20)/100)),2),0) -> 0 | W20: =IF(V20="","",IF(V20>0,ROUND(IF(MOD(V20,30)=0,QUOTIENT(V20,30)*VLOOKUP(B20&"AM+E",Importes!$A$2:$F$14,6,FALSE)*(IF($U20>100,0,$U20)/100),V20*VLOOKUP(B20&"AM+E",Importes!$A$2:$F$14,5,FALSE)*(IF($U20>100,0,$U20)/100)),2),0)) ->  | AC20: Si | BV20: 0 | BW20: 0 | BX20: 0 | BY20: 0 | BZ20: 0 | CA20: 0 | CB20: 2023-07-01 | CC20: 2023-07-31 | CD20: 0 | CE20: 0 | CF20: 2023-01-01 | CG20: 2023-07-31 | CH20: 00:00:00 | CI20: 2023-01-01 | CJ20: 0 | CK20: 0 | CL20: 0 | CM20: 0 | CN20: 0 | CO20: 2023-01-01 | CP20: 0 | CQ20: 0 | CR20: 0 | CS20: 0 | CT20: 0 | CU20: 0 | CV20: AA | CW20: A | CX20: A | CY20: NO | CZ20: 5 | DA20: 0
P21: =IFERROR(VLOOKUP(O21,Importes!K:P,2,FALSE),"") ->  | R21: AM+E | S21: 0 | T21: =IFERROR(ROUND(IF(MOD(S21,30)=0,QUOTIENT(S21,30)*VLOOKUP(B21&"AM+E",Importes!$A$2:$F$14,6,FALSE)*(IF($Q21>100,0,$Q21)/100),S21*VLOOKUP(B21&"AM+E",Importes!$A$2:$F$14,5,FALSE)*(IF($Q21>100,0,$Q21)/100)),2),0) -> 0 | W21: =IF(V21="","",IF(V21>0,ROUND(IF(MOD(V21,30)=0,QUOTIENT(V21,30)*VLOOKUP(B21&"AM+E",Importes!$A$2:$F$14,6,FALSE)*(IF($U21>100,0,$U21)/100),V21*VLOOKUP(B21&"AM+E",Importes!$A$2:$F$14,5,FALSE)*(IF($U21>100,0,$U21)/100)),2),0)) ->  | AC21: Si | BV21: 0 | BW21: 0 | BX21: 0 | BY21: 0 | BZ21: 0 | CA21: 0 | CB21: 2023-07-01 | CC21: 2023-07-31 | CD21: 0 | CE21: 0 | CF21: 2023-01-01 | CG21: 2023-07-31 | CH21: 00:00:00 | CI21: 2023-01-01 | CJ21: 0 | CK21: 0 | CL21: 0 | CM21: 0 | CN21: 0 | CO21: 2023-01-01 | CP21: 0 | CQ21: 0 | CR21: 0 | CS21: 0 | CT21: 0 | CU21: 0 | CV21: AA | CW21: A | CX21: A | CY21: NO | CZ21: 5 | DA21: 0
P22: =IFERROR(VLOOKUP(O22,Importes!K:P,2,FALSE),"") ->  | R22: AM+E | S22: 0 | T22: =IFERROR(ROUND(IF(MOD(S22,30)=0,QUOTIENT(S22,30)*VLOOKUP(B22&"AM+E",Importes!$A$2:$F$14,6,FALSE)*(IF($Q22>100,0,$Q22)/100),S22*VLOOKUP(B22&"AM+E",Importes!$A$2:$F$14,5,FALSE)*(IF($Q22>100,0,$Q22)/100)),2),0) -> 0 | W22: =IF(V22="","",IF(V22>0,ROUND(IF(MOD(V22,30)=0,QUOTIENT(V22,30)*VLOOKUP(B22&"AM+E",Importes!$A$2:$F$14,6,FALSE)*(IF($U22>100,0,$U22)/100),V22*VLOOKUP(B22&"AM+E",Importes!$A$2:$F$14,5,FALSE)*(IF($U22>100,0,$U22)/100)),2),0)) ->  | AC22: Si | AQ22: =IF(VALUE($A22)=0,"",IF(AQ$11="","",IF($N22<AQ$6,"",IF($M22>AQ$6,"",IF(AND(OR($N22="",$N22>=AQ$6),$AA22="",$R22<>""),"F",IF(AND($AA22<=AQ$6,OR($AB22=$N22,$AB22>=AQ$6,IF($AB22="",$AD$5))),"h",IF($CC22>=AQ$6,"F",""))))))) ->  | BA22: =IF(VALUE($A22)=0,"",IF(BA$11="","",IF($N22<BA$6,"",IF($M22>BA$6,"",IF(AND(OR($N22="",$N22>=BA$6),$AA22="",$R22<>""),"F",IF(AND($AA22<=BA$6,OR($AB22=$N22,$AB22>=BA$6,IF($AB22="",$AD$5))),"h",IF($CC22>=BA$6,"F",""))))))) ->  | BK22: =IF(VALUE($A22)=0,"",IF(BK$11="","",IF($N22<BK$6,"",IF($M22>BK$6,"",IF(AND(OR($N22="",$N22>=BK$6),$AA22="",$R22<>""),"F",IF(AND($AA22<=BK$6,OR($AB22=$N22,$AB22>=BK$6,IF($AB22="",$AD$5))),"h",IF($CC22>=BK$6,"F",""))))))) ->  | BV22: 0 | BW22: 0 | BX22: 0 | BY22: 0 | BZ22: 0 | CA22: 0 | CB22: 2023-07-01 | CC22: 2023-07-31 | CD22: 0 | CE22: 0 | CF22: 2023-01-01 | CG22: 2023-07-31 | CH22: 00:00:00 | CI22: 2023-01-01 | CJ22: 0 | CK22: 0 | CL22: 0 | CM22: 0 | CN22: 0 | CO22: 2023-01-01 | CP22: 0 | CQ22: 0 | CR22: 0 | CS22: 0 | CT22: 0 | CU22: 0 | CV22: AA | CW22: A | CX22: A | CY22: NO | CZ22: 5 | DA22: 0
P23: =IFERROR(VLOOKUP(O23,Importes!K:P,2,FALSE),"") ->  | R23: AM+E | S23: 0 | T23: =IFERROR(ROUND(IF(MOD(S23,30)=0,QUOTIENT(S23,30)*VLOOKUP(B23&"AM+E",Importes!$A$2:$F$14,6,FALSE)*(IF($Q23>100,0,$Q23)/100),S23*VLOOKUP(B23&"AM+E",Importes!$A$2:$F$14,5,FALSE)*(IF($Q23>100,0,$Q23)/100)),2),0) -> 0 | W23: =IF(V23="","",IF(V23>0,ROUND(IF(MOD(V23,30)=0,QUOTIENT(V23,30)*VLOOKUP(B23&"AM+E",Importes!$A$2:$F$14,6,FALSE)*(IF($U23>100,0,$U23)/100),V23*VLOOKUP(B23&"AM+E",Importes!$A$2:$F$14,5,FALSE)*(IF($U23>100,0,$U23)/100)),2),0)) ->  | AC23: Si | BV23: 0 | BW23: 0 | BX23: 0 | BY23: 0 | BZ23: 0 | CA23: 0 | CB23: 2023-07-01 | CC23: 2023-07-31 | CD23: 0 | CE23: 0 | CF23: 2023-01-01 | CG23: 2023-07-31 | CH23: 00:00:00 | CI23: 2023-01-01 | CJ23: 0 | CK23: 0 | CL23: 0 | CM23: 0 | CN23: 0 | CO23: 2023-01-01 | CP23: 0 | CQ23: 0 | CR23: 0 | CS23: 0 | CT23: 0 | CU23: 0 | CV23: AA | CW23: A | CX23: A | CY23: NO | CZ23: 5 | DA23: 0
P24: =IFERROR(VLOOKUP(O24,Importes!K:P,2,FALSE),"") ->  | R24: AM+E | S24: 0 | T24: =IFERROR(ROUND(IF(MOD(S24,30)=0,QUOTIENT(S24,30)*VLOOKUP(B24&"AM+E",Importes!$A$2:$F$14,6,FALSE)*(IF($Q24>100,0,$Q24)/100),S24*VLOOKUP(B24&"AM+E",Importes!$A$2:$F$14,5,FALSE)*(IF($Q24>100,0,$Q24)/100)),2),0) -> 0 | W24: =IF(V24="","",IF(V24>0,ROUND(IF(MOD(V24,30)=0,QUOTIENT(V24,30)*VLOOKUP(B24&"AM+E",Importes!$A$2:$F$14,6,FALSE)*(IF($U24>100,0,$U24)/100),V24*VLOOKUP(B24&"AM+E",Importes!$A$2:$F$14,5,FALSE)*(IF($U24>100,0,$U24)/100)),2),0)) ->  | AC24: Si | BV24: 0 | BW24: 0 | BX24: 0 | BY24: 0 | BZ24: 0 | CA24: 0 | CB24: 2023-07-01 | CC24: 2023-07-31 | CD24: 0 | CE24: 0 | CF24: 2023-01-01 | CG24: 2023-07-31 | CH24: 00:00:00 | CI24: 2023-01-01 | CJ24: 0 | CK24: 0 | CL24: 0 | CM24: 0 | CN24: 0 | CO24: 2023-01-01 | CP24: 0 | CQ24: 0 | CR24: 0 | CS24: 0 | CT24: 0 | CU24: 0 | CV24: AA | CW24: A | CX24: A | CY24: NO | CZ24: 5 | DA24: 0
P25: =IFERROR(VLOOKUP(O25,Importes!K:P,2,FALSE),"") ->  | R25: AM+E | S25: 0 | T25: =IFERROR(ROUND(IF(MOD(S25,30)=0,QUOTIENT(S25,30)*VLOOKUP(B25&"AM+E",Importes!$A$2:$F$14,6,FALSE)*(IF($Q25>100,0,$Q25)/100),S25*VLOOKUP(B25&"AM+E",Importes!$A$2:$F$14,5,FALSE)*(IF($Q25>100,0,$Q25)/100)),2),0) -> 0 | W25: =IF(V25="","",IF(V25>0,ROUND(IF(MOD(V25,30)=0,QUOTIENT(V25,30)*VLOOKUP(B25&"AM+E",Importes!$A$2:$F$14,6,FALSE)*(IF($U25>100,0,$U25)/100),V25*VLOOKUP(B25&"AM+E",Importes!$A$2:$F$14,5,FALSE)*(IF($U25>100,0,$U25)/100)),2),0)) ->  | AC25: Si | BV25: 0 | BW25: 0 | BX25: 0 | BY25: 0 | BZ25: 0 | CA25: 0 | CB25: 2023-07-01 | CC25: 2023-07-31 | CD25: 0 | CE25: 0 | CF25: 2023-01-01 | CG25: 2023-07-31 | CH25: 00:00:00 | CI25: 2023-01-01 | CJ25: 0 | CK25: 0 | CL25: 0 | CM25: 0 | CN25: 0 | CO25: 2023-01-01 | CP25: 0 | CQ25: 0 | CR25: 0 | CS25: 0 | CT25: 0 | CU25: 0 | CV25: AA | CW25: A | CX25: A | CY25: NO | CZ25: 5 | DA25: 0
P26: =IFERROR(VLOOKUP(O26,Importes!K:P,2,FALSE),"") ->  | R26: AM+E | S26: 0 | T26: =IFERROR(ROUND(IF(MOD(S26,30)=0,QUOTIENT(S26,30)*VLOOKUP(B26&"AM+E",Importes!$A$2:$F$14,6,FALSE)*(IF($Q26>100,0,$Q26)/100),S26*VLOOKUP(B26&"AM+E",Importes!$A$2:$F$14,5,FALSE)*(IF($Q26>100,0,$Q26)/100)),2),0) -> 0 | W26: =IF(V26="","",IF(V26>0,ROUND(IF(MOD(V26,30)=0,QUOTIENT(V26,30)*VLOOKUP(B26&"AM+E",Importes!$A$2:$F$14,6,FALSE)*(IF($U26>100,0,$U26)/100),V26*VLOOKUP(B26&"AM+E",Importes!$A$2:$F$14,5,FALSE)*(IF($U26>100,0,$U26)/100)),2),0)) ->  | AC26: Si | BV26: 0 | BW26: 0 | BX26: 0 | BY26: 0 | BZ26: 0 | CA26: 0 | CB26: 2023-07-01 | CC26: 2023-07-31 | CD26: 0 | CE26: 0 | CF26: 2023-01-01 | CG26: 2023-07-31 | CH26: 00:00:00 | CI26: 2023-01-01 | CJ26: 0 | CK26: 0 | CL26: 0 | CM26: 0 | CN26: 0 | CO26: 2023-01-01 | CP26: 0 | CQ26: 0 | CR26: 0 | CS26: 0 | CT26: 0 | CU26: 0 | CV26: AA | CW26: A | CX26: A | CY26: NO | CZ26: 5 | DA26: 0
P27: =IFERROR(VLOOKUP(O27,Importes!K:P,2,FALSE),"") ->  | R27: AM+E | S27: 0 | T27: =IFERROR(ROUND(IF(MOD(S27,30)=0,QUOTIENT(S27,30)*VLOOKUP(B27&"AM+E",Importes!$A$2:$F$14,6,FALSE)*(IF($Q27>100,0,$Q27)/100),S27*VLOOKUP(B27&"AM+E",Importes!$A$2:$F$14,5,FALSE)*(IF($Q27>100,0,$Q27)/100)),2),0) -> 0 | W27: =IF(V27="","",IF(V27>0,ROUND(IF(MOD(V27,30)=0,QUOTIENT(V27,30)*VLOOKUP(B27&"AM+E",Importes!$A$2:$F$14,6,FALSE)*(IF($U27>100,0,$U27)/100),V27*VLOOKUP(B27&"AM+E",Importes!$A$2:$F$14,5,FALSE)*(IF($U27>100,0,$U27)/100)),2),0)) ->  | AC27: Si | BV27: 0 | BW27: 0 | BX27: 0 | BY27: 0 | BZ27: 0 | CA27: 0 | CB27: 2023-07-01 | CC27: 2023-07-31 | CD27: 0 | CE27: 0 | CF27: 2023-01-01 | CG27: 2023-07-31 | CH27: 00:00:00 | CI27: 2023-01-01 | CJ27: 0 | CK27: 0 | CL27: 0 | CM27: 0 | CN27: 0 | CO27: 2023-01-01 | CP27: 0 | CQ27: 0 | CR27: 0 | CS27: 0 | CT27: 0 | CU27: 0 | CV27: AA | CW27: A | CX27: A | CY27: NO | CZ27: 5 | DA27: 0
P28: =IFERROR(VLOOKUP(O28,Importes!K:P,2,FALSE),"") ->  | R28: AM+E | S28: 0 | T28: =IFERROR(ROUND(IF(MOD(S28,30)=0,QUOTIENT(S28,30)*VLOOKUP(B28&"AM+E",Importes!$A$2:$F$14,6,FALSE)*(IF($Q28>100,0,$Q28)/100),S28*VLOOKUP(B28&"AM+E",Importes!$A$2:$F$14,5,FALSE)*(IF($Q28>100,0,$Q28)/100)),2),0) -> 0 | W28: =IF(V28="","",IF(V28>0,ROUND(IF(MOD(V28,30)=0,QUOTIENT(V28,30)*VLOOKUP(B28&"AM+E",Importes!$A$2:$F$14,6,FALSE)*(IF($U28>100,0,$U28)/100),V28*VLOOKUP(B28&"AM+E",Importes!$A$2:$F$14,5,FALSE)*(IF($U28>100,0,$U28)/100)),2),0)) ->  | AC28: Si | AF28: =IF($T28>0,"X","") ->  | BV28: 0 | BW28: 0 | BX28: 0 | BY28: 0 | BZ28: 0 | CA28: 0 | CB28: 2023-07-01 | CC28: 2023-07-31 | CD28: 0 | CE28: 0 | CF28: 2023-01-01 | CG28: 2023-07-31 | CH28: 00:00:00 | CI28: 2023-01-01 | CJ28: 0 | CK28: 0 | CL28: 0 | CM28: 0 | CN28: 0 | CO28: 2023-01-01 | CP28: 0 | CQ28: 0 | CR28: 0 | CS28: 0 | CT28: 0 | CU28: 0 | CV28: AA | CW28: A | CX28: A | CY28: NO | CZ28: 5 | DA28: 0
P29: =IFERROR(VLOOKUP(O29,Importes!K:P,2,FALSE),"") ->  | R29: AM+E | S29: 0 | T29: =IFERROR(ROUND(IF(MOD(S29,30)=0,QUOTIENT(S29,30)*VLOOKUP(B29&"AM+E",Importes!$A$2:$F$14,6,FALSE)*(IF($Q29>100,0,$Q29)/100),S29*VLOOKUP(B29&"AM+E",Importes!$A$2:$F$14,5,FALSE)*(IF($Q29>100,0,$Q29)/100)),2),0) -> 0 | W29: =IF(V29="","",IF(V29>0,ROUND(IF(MOD(V29,30)=0,QUOTIENT(V29,30)*VLOOKUP(B29&"AM+E",Importes!$A$2:$F$14,6,FALSE)*(IF($U29>100,0,$U29)/100),V29*VLOOKUP(B29&"AM+E",Importes!$A$2:$F$14,5,FALSE)*(IF($U29>100,0,$U29)/100)),2),0)) ->  | AC29: Si | BV29: 0 | BW29: 0 | BX29: 0 | BY29: 0 | BZ29: 0 | CA29: 0 | CB29: 2023-07-01 | CC29: 2023-07-31 | CD29: 0 | CE29: 0 | CF29: 2023-01-01 | CG29: 2023-07-31 | CH29: 00:00:00 | CI29: 2023-01-01 | CJ29: 0 | CK29: 0 | CL29: 0 | CM29: 0 | CN29: 0 | CO29: 2023-01-01 | CP29: 0 | CQ29: 0 | CR29: 0 | CS29: 0 | CT29: 0 | CU29: 0 | CV29: AA | CW29: A | CX29: A | CY29: NO | CZ29: 5 | DA29: =IFERROR(IF(AND(F29>0,G29>0),7,0),7) -> 0
P30: =IFERROR(VLOOKUP(O30,Importes!K:P,2,FALSE),"") ->  | R30: AM+E | S30: 0 | T30: =IFERROR(ROUND(IF(MOD(S30,30)=0,QUOTIENT(S30,30)*VLOOKUP(B30&"AM+E",Importes!$A$2:$F$14,6,FALSE)*(IF($Q30>100,0,$Q30)/100),S30*VLOOKUP(B30&"AM+E",Importes!$A$2:$F$14,5,FALSE)*(IF($Q30>100,0,$Q30)/100)),2),0) -> 0 | W30: =IF(V30="","",IF(V30>0,ROUND(IF(MOD(V30,30)=0,QUOTIENT(V30,30)*VLOOKUP(B30&"AM+E",Importes!$A$2:$F$14,6,FALSE)*(IF($U30>100,0,$U30)/100),V30*VLOOKUP(B30&"AM+E",Importes!$A$2:$F$14,5,FALSE)*(IF($U30>100,0,$U30)/100)),2),0)) ->  | AC30: Si | BV30: 0 | BW30: 0 | BX30: 0 | BY30: 0 | BZ30: 0 | CA30: 0 | CB30: 2023-07-01 | CC30: 2023-07-31 | CD30: 0 | CE30: 0 | CF30: 2023-01-01 | CG30: 2023-07-31 | CH30: 00:00:00 | CI30: 2023-01-01 | CJ30: 0 | CK30: 0 | CL30: 0 | CM30: 0 | CN30: 0 | CO30: 2023-01-01 | CP30: 0 | CQ30: 0 | CR30: 0 | CS30: 0 | CT30: 0 | CU30: 0 | CV30: AA | CW30: A | CX30: A | CY30: NO | CZ30: 5 | DA30: 0
P31: =IFERROR(VLOOKUP(O31,Importes!K:P,2,FALSE),"") ->  | R31: AM+E | S31: 0 | T31: =IFERROR(ROUND(IF(MOD(S31,30)=0,QUOTIENT(S31,30)*VLOOKUP(B31&"AM+E",Importes!$A$2:$F$14,6,FALSE)*(IF($Q31>100,0,$Q31)/100),S31*VLOOKUP(B31&"AM+E",Importes!$A$2:$F$14,5,FALSE)*(IF($Q31>100,0,$Q31)/100)),2),0) -> 0 | W31: =IF(V31="","",IF(V31>0,ROUND(IF(MOD(V31,30)=0,QUOTIENT(V31,30)*VLOOKUP(B31&"AM+E",Importes!$A$2:$F$14,6,FALSE)*(IF($U31>100,0,$U31)/100),V31*VLOOKUP(B31&"AM+E",Importes!$A$2:$F$14,5,FALSE)*(IF($U31>100,0,$U31)/100)),2),0)) ->  | AC31: Si | BV31: 0 | BW31: 0 | BX31: 0 | BY31: 0 | BZ31: 0 | CA31: 0 | CB31: 2023-07-01 | CC31: 2023-07-31 | CD31: 0 | CE31: 0 | CF31: 2023-01-01 | CG31: 2023-07-31 | CH31: 00:00:00 | CI31: 2023-01-01 | CJ31: 0 | CK31: 0 | CL31: 0 | CM31: 0 | CN31: 0 | CO31: 2023-01-01 | CP31: 0 | CQ31: 0 | CR31: 0 | CS31: 0 | CT31: 0 | CU31: 0 | CV31: AA | CW31: A | CX31: A | CY31: NO | CZ31: 5 | DA31: 0
P32: =IFERROR(VLOOKUP(O32,Importes!K:P,2,FALSE),"") ->  | R32: AM+E | S32: 0 | T32: =IFERROR(ROUND(IF(MOD(S32,30)=0,QUOTIENT(S32,30)*VLOOKUP(B32&"AM+E",Importes!$A$2:$F$14,6,FALSE)*(IF($Q32>100,0,$Q32)/100),S32*VLOOKUP(B32&"AM+E",Importes!$A$2:$F$14,5,FALSE)*(IF($Q32>100,0,$Q32)/100)),2),0) -> 0 | W32: =IF(V32="","",IF(V32>0,ROUND(IF(MOD(V32,30)=0,QUOTIENT(V32,30)*VLOOKUP(B32&"AM+E",Importes!$A$2:$F$14,6,FALSE)*(IF($U32>100,0,$U32)/100),V32*VLOOKUP(B32&"AM+E",Importes!$A$2:$F$14,5,FALSE)*(IF($U32>100,0,$U32)/100)),2),0)) ->  | AC32: Si | AQ32: =IF(VALUE($A32)=0,"",IF(AQ$11="","",IF($N32<AQ$6,"",IF($M32>AQ$6,"",IF(AND(OR($N32="",$N32>=AQ$6),$AA32="",$R32<>""),"F",IF(AND($AA32<=AQ$6,OR($AB32=$N32,$AB32>=AQ$6,IF($AB32="",$AD$5))),"h",IF($CC32>=AQ$6,"F",""))))))) ->  | BA32: =IF(VALUE($A32)=0,"",IF(BA$11="","",IF($N32<BA$6,"",IF($M32>BA$6,"",IF(AND(OR($N32="",$N32>=BA$6),$AA32="",$R32<>""),"F",IF(AND($AA32<=BA$6,OR($AB32=$N32,$AB32>=BA$6,IF($AB32="",$AD$5))),"h",IF($CC32>=BA$6,"F",""))))))) ->  | BK32: =IF(VALUE($A32)=0,"",IF(BK$11="","",IF($N32<BK$6,"",IF($M32>BK$6,"",IF(AND(OR($N32="",$N32>=BK$6),$AA32="",$R32<>""),"F",IF(AND($AA32<=BK$6,OR($AB32=$N32,$AB32>=BK$6,IF($AB32="",$AD$5))),"h",IF($CC32>=BK$6,"F",""))))))) ->  | BV32: 0 | BW32: 0 | BX32: 0 | BY32: 0 | BZ32: 0 | CA32: 0 | CB32: 2023-07-01 | CC32: 2023-07-31 | CD32: 0 | CE32: 0 | CF32: 2023-01-01 | CG32: 2023-07-31 | CH32: 00:00:00 | CI32: 2023-01-01 | CJ32: 0 | CK32: 0 | CL32: 0 | CM32: 0 | CN32: 0 | CO32: 2023-01-01 | CP32: 0 | CQ32: 0 | CR32: 0 | CS32: 0 | CT32: 0 | CU32: 0 | CV32: AA | CW32: A | CX32: A | CY32: NO | CZ32: 5 | DA32: 0
P33: =IFERROR(VLOOKUP(O33,Importes!K:P,2,FALSE),"") ->  | R33: AM+E | S33: 0 | T33: =IFERROR(ROUND(IF(MOD(S33,30)=0,QUOTIENT(S33,30)*VLOOKUP(B33&"AM+E",Importes!$A$2:$F$14,6,FALSE)*(IF($Q33>100,0,$Q33)/100),S33*VLOOKUP(B33&"AM+E",Importes!$A$2:$F$14,5,FALSE)*(IF($Q33>100,0,$Q33)/100)),2),0) -> 0 | W33: =IF(V33="","",IF(V33>0,ROUND(IF(MOD(V33,30)=0,QUOTIENT(V33,30)*VLOOKUP(B33&"AM+E",Importes!$A$2:$F$14,6,FALSE)*(IF($U33>100,0,$U33)/100),V33*VLOOKUP(B33&"AM+E",Importes!$A$2:$F$14,5,FALSE)*(IF($U33>100,0,$U33)/100)),2),0)) ->  | AC33: Si | BV33: 0 | BW33: 0 | BX33: 0 | BY33: 0 | BZ33: 0 | CA33: 0 | CB33: 2023-07-01 | CC33: 2023-07-31 | CD33: 0 | CE33: 0 | CF33: 2023-01-01 | CG33: 2023-07-31 | CH33: 00:00:00 | CI33: 2023-01-01 | CJ33: 0 | CK33: 0 | CL33: 0 | CM33: 0 | CN33: 0 | CO33: 2023-01-01 | CP33: 0 | CQ33: 0 | CR33: 0 | CS33: 0 | CT33: 0 | CU33: 0 | CV33: AA | CW33: A | CX33: A | CY33: NO | CZ33: 5 | DA33: 0
P34: =IFERROR(VLOOKUP(O34,Importes!K:P,2,FALSE),"") ->  | R34: AM+E | S34: 0 | T34: =IFERROR(ROUND(IF(MOD(S34,30)=0,QUOTIENT(S34,30)*VLOOKUP(B34&"AM+E",Importes!$A$2:$F$14,6,FALSE)*(IF($Q34>100,0,$Q34)/100),S34*VLOOKUP(B34&"AM+E",Importes!$A$2:$F$14,5,FALSE)*(IF($Q34>100,0,$Q34)/100)),2),0) -> 0 | W34: =IF(V34="","",IF(V34>0,ROUND(IF(MOD(V34,30)=0,QUOTIENT(V34,30)*VLOOKUP(B34&"AM+E",Importes!$A$2:$F$14,6,FALSE)*(IF($U34>100,0,$U34)/100),V34*VLOOKUP(B34&"AM+E",Importes!$A$2:$F$14,5,FALSE)*(IF($U34>100,0,$U34)/100)),2),0)) ->  | AC34: Si | BV34: 0 | BW34: 0 | BX34: 0 | BY34: 0 | BZ34: 0 | CA34: 0 | CB34: 2023-07-01 | CC34: 2023-07-31 | CD34: 0 | CE34: 0 | CF34: 2023-01-01 | CG34: 2023-07-31 | CH34: 00:00:00 | CI34: 2023-01-01 | CJ34: 0 | CK34: 0 | CL34: 0 | CM34: 0 | CN34: 0 | CO34: 2023-01-01 | CP34: 0 | CQ34: 0 | CR34: 0 | CS34: 0 | CT34: 0 | CU34: 0 | CV34: AA | CW34: A | CX34: A | CY34: NO | CZ34: 5 | DA34: 0
P35: =IFERROR(VLOOKUP(O35,Importes!K:P,2,FALSE),"") ->  | R35: AM+E | S35: 0 | T35: =IFERROR(ROUND(IF(MOD(S35,30)=0,QUOTIENT(S35,30)*VLOOKUP(B35&"AM+E",Importes!$A$2:$F$14,6,FALSE)*(IF($Q35>100,0,$Q35)/100),S35*VLOOKUP(B35&"AM+E",Importes!$A$2:$F$14,5,FALSE)*(IF($Q35>100,0,$Q35)/100)),2),0) -> 0 | W35: =IF(V35="","",IF(V35>0,ROUND(IF(MOD(V35,30)=0,QUOTIENT(V35,30)*VLOOKUP(B35&"AM+E",Importes!$A$2:$F$14,6,FALSE)*(IF($U35>100,0,$U35)/100),V35*VLOOKUP(B35&"AM+E",Importes!$A$2:$F$14,5,FALSE)*(IF($U35>100,0,$U35)/100)),2),0)) ->  | AC35: Si | BV35: 0 | BW35: 0 | BX35: 0 | BY35: 0 | BZ35: 0 | CA35: 0 | CB35: 2023-07-01 | CC35: 2023-07-31 | CD35: 0 | CE35: 0 | CF35: 2023-01-01 | CG35: 2023-07-31 | CH35: 00:00:00 | CI35: 2023-01-01 | CJ35: 0 | CK35: 0 | CL35: 0 | CM35: 0 | CN35: 0 | CO35: 2023-01-01 | CP35: 0 | CQ35: 0 | CR35: 0 | CS35: 0 | CT35: 0 | CU35: 0 | CV35: AA | CW35: A | CX35: A | CY35: NO | CZ35: 5 | DA35: 0
P36: =IFERROR(VLOOKUP(O36,Importes!K:P,2,FALSE),"") ->  | R36: AM+E | S36: 0 | T36: =IFERROR(ROUND(IF(MOD(S36,30)=0,QUOTIENT(S36,30)*VLOOKUP(B36&"AM+E",Importes!$A$2:$F$14,6,FALSE)*(IF($Q36>100,0,$Q36)/100),S36*VLOOKUP(B36&"AM+E",Importes!$A$2:$F$14,5,FALSE)*(IF($Q36>100,0,$Q36)/100)),2),0) -> 0 | W36: =IF(V36="","",IF(V36>0,ROUND(IF(MOD(V36,30)=0,QUOTIENT(V36,30)*VLOOKUP(B36&"AM+E",Importes!$A$2:$F$14,6,FALSE)*(IF($U36>100,0,$U36)/100),V36*VLOOKUP(B36&"AM+E",Importes!$A$2:$F$14,5,FALSE)*(IF($U36>100,0,$U36)/100)),2),0)) ->  | AC36: Si | BV36: 0 | BW36: 0 | BX36: 0 | BY36: 0 | BZ36: 0 | CA36: 0 | CB36: 2023-07-01 | CC36: 2023-07-31 | CD36: 0 | CE36: 0 | CF36: 2023-01-01 | CG36: 2023-07-31 | CH36: 00:00:00 | CI36: 2023-01-01 | CJ36: 0 | CK36: 0 | CL36: 0 | CM36: 0 | CN36: 0 | CO36: 2023-01-01 | CP36: 0 | CQ36: 0 | CR36: 0 | CS36: 0 | CT36: 0 | CU36: 0 | CV36: AA | CW36: A | CX36: A | CY36: NO | CZ36: 5 | DA36: 0
P37: =IFERROR(VLOOKUP(O37,Importes!K:P,2,FALSE),"") ->  | R37: AM+E | S37: 0 | T37: =IFERROR(ROUND(IF(MOD(S37,30)=0,QUOTIENT(S37,30)*VLOOKUP(B37&"AM+E",Importes!$A$2:$F$14,6,FALSE)*(IF($Q37>100,0,$Q37)/100),S37*VLOOKUP(B37&"AM+E",Importes!$A$2:$F$14,5,FALSE)*(IF($Q37>100,0,$Q37)/100)),2),0) -> 0 | W37: =IF(V37="","",IF(V37>0,ROUND(IF(MOD(V37,30)=0,QUOTIENT(V37,30)*VLOOKUP(B37&"AM+E",Importes!$A$2:$F$14,6,FALSE)*(IF($U37>100,0,$U37)/100),V37*VLOOKUP(B37&"AM+E",Importes!$A$2:$F$14,5,FALSE)*(IF($U37>100,0,$U37)/100)),2),0)) ->  | AC37: Si | BV37: 0 | BW37: 0 | BX37: 0 | BY37: 0 | BZ37: 0 | CA37: 0 | CB37: 2023-07-01 | CC37: 2023-07-31 | CD37: 0 | CE37: 0 | CF37: 2023-01-01 | CG37: 2023-07-31 | CH37: 00:00:00 | CI37: 2023-01-01 | CJ37: 0 | CK37: 0 | CL37: 0 | CM37: 0 | CN37: 0 | CO37: 2023-01-01 | CP37: 0 | CQ37: 0 | CR37: 0 | CS37: 0 | CT37: 0 | CU37: 0 | CV37: AA | CW37: A | CX37: A | CY37: NO | CZ37: 5 | DA37: 0
P38: =IFERROR(VLOOKUP(O38,Importes!K:P,2,FALSE),"") ->  | R38: AM+E | S38: 0 | T38: =IFERROR(ROUND(IF(MOD(S38,30)=0,QUOTIENT(S38,30)*VLOOKUP(B38&"AM+E",Importes!$A$2:$F$14,6,FALSE)*(IF($Q38>100,0,$Q38)/100),S38*VLOOKUP(B38&"AM+E",Importes!$A$2:$F$14,5,FALSE)*(IF($Q38>100,0,$Q38)/100)),2),0) -> 0 | W38: =IF(V38="","",IF(V38>0,ROUND(IF(MOD(V38,30)=0,QUOTIENT(V38,30)*VLOOKUP(B38&"AM+E",Importes!$A$2:$F$14,6,FALSE)*(IF($U38>100,0,$U38)/100),V38*VLOOKUP(B38&"AM+E",Importes!$A$2:$F$14,5,FALSE)*(IF($U38>100,0,$U38)/100)),2),0)) ->  | AC38: Si | BV38: 0 | BW38: 0 | BX38: 0 | BY38: 0 | BZ38: 0 | CA38: 0 | CB38: 2023-07-01 | CC38: 2023-07-31 | CD38: 0 | CE38: 0 | CF38: 2023-01-01 | CG38: 2023-07-31 | CH38: 00:00:00 | CI38: 2023-01-01 | CJ38: 0 | CK38: 0 | CL38: 0 | CM38: 0 | CN38: 0 | CO38: 2023-01-01 | CP38: 0 | CQ38: 0 | CR38: 0 | CS38: 0 | CT38: 0 | CU38: 0 | CV38: AA | CW38: A | CX38: A | CY38: NO | CZ38: 5 | DA38: 0
P39: =IFERROR(VLOOKUP(O39,Importes!K:P,2,FALSE),"") ->  | R39: AM+E | S39: 0 | T39: =IFERROR(ROUND(IF(MOD(S39,30)=0,QUOTIENT(S39,30)*VLOOKUP(B39&"AM+E",Importes!$A$2:$F$14,6,FALSE)*(IF($Q39>100,0,$Q39)/100),S39*VLOOKUP(B39&"AM+E",Importes!$A$2:$F$14,5,FALSE)*(IF($Q39>100,0,$Q39)/100)),2),0) -> 0 | W39: =IF(V39="","",IF(V39>0,ROUND(IF(MOD(V39,30)=0,QUOTIENT(V39,30)*VLOOKUP(B39&"AM+E",Importes!$A$2:$F$14,6,FALSE)*(IF($U39>100,0,$U39)/100),V39*VLOOKUP(B39&"AM+E",Importes!$A$2:$F$14,5,FALSE)*(IF($U39>100,0,$U39)/100)),2),0)) ->  | AC39: Si | BV39: 0 | BW39: 0 | BX39: 0 | BY39: 0 | BZ39: 0 | CA39: 0 | CB39: 2023-07-01 | CC39: 2023-07-31 | CD39: 0 | CE39: 0 | CF39: 2023-01-01 | CG39: 2023-07-31 | CH39: 00:00:00 | CI39: 2023-01-01 | CJ39: 0 | CK39: 0 | CL39: 0 | CM39: 0 | CN39: 0 | CO39: 2023-01-01 | CP39: 0 | CQ39: 0 | CR39: 0 | CS39: 0 | CT39: 0 | CU39: 0 | CV39: AA | CW39: A | CX39: A | CY39: NO | CZ39: 5 | DA39: 0
P40: =IFERROR(VLOOKUP(O40,Importes!K:P,2,FALSE),"") ->  | R40: AM+E | S40: 0 | T40: =IFERROR(ROUND(IF(MOD(S40,30)=0,QUOTIENT(S40,30)*VLOOKUP(B40&"AM+E",Importes!$A$2:$F$14,6,FALSE)*(IF($Q40>100,0,$Q40)/100),S40*VLOOKUP(B40&"AM+E",Importes!$A$2:$F$14,5,FALSE)*(IF($Q40>100,0,$Q40)/100)),2),0) -> 0 | W40: =IF(V40="","",IF(V40>0,ROUND(IF(MOD(V40,30)=0,QUOTIENT(V40,30)*VLOOKUP(B40&"AM+E",Importes!$A$2:$F$14,6,FALSE)*(IF($U40>100,0,$U40)/100),V40*VLOOKUP(B40&"AM+E",Importes!$A$2:$F$14,5,FALSE)*(IF($U40>100,0,$U40)/100)),2),0)) ->  | AC40: Si | BV40: 0 | BW40: 0 | BX40: 0 | BY40: 0 | BZ40: 0 | CA40: 0 | CB40: 2023-07-01 | CC40: 2023-07-31 | CD40: 0 | CE40: 0 | CF40: 2023-01-01 | CG40: 2023-07-31 | CH40: 00:00:00 | CI40: 2023-01-01 | CJ40: 0 | CK40: 0 | CL40: 0 | CM40: 0 | CN40: 0 | CO40: 2023-01-01 | CP40: 0 | CQ40: 0 | CR40: 0 | CS40: 0 | CT40: 0 | CU40: 0 | CV40: AA | CW40: A | CX40: A | CY40: NO | CZ40: 5 | DA40: 0
P41: =IFERROR(VLOOKUP(O41,Importes!K:P,2,FALSE),"") ->  | R41: AM+E | S41: 0 | T41: =IFERROR(ROUND(IF(MOD(S41,30)=0,QUOTIENT(S41,30)*VLOOKUP(B41&"AM+E",Importes!$A$2:$F$14,6,FALSE)*(IF($Q41>100,0,$Q41)/100),S41*VLOOKUP(B41&"AM+E",Importes!$A$2:$F$14,5,FALSE)*(IF($Q41>100,0,$Q41)/100)),2),0) -> 0 | W41: =IF(V41="","",IF(V41>0,ROUND(IF(MOD(V41,30)=0,QUOTIENT(V41,30)*VLOOKUP(B41&"AM+E",Importes!$A$2:$F$14,6,FALSE)*(IF($U41>100,0,$U41)/100),V41*VLOOKUP(B41&"AM+E",Importes!$A$2:$F$14,5,FALSE)*(IF($U41>100,0,$U41)/100)),2),0)) ->  | AC41: Si | AP41: =IF(IFERROR(VLOOKUP(G41,$AD$12:$AD$60,1,FALSE),"")="","",1) ->  | BV41: 0 | BW41: 0 | BX41: 0 | BY41: 0 | BZ41: 0 | CA41: 0 | CB41: 2023-07-01 | CC41: 2023-07-31 | CD41: 0 | CE41: 0 | CF41: 2023-01-01 | CG41: 2023-07-31 | CH41: 00:00:00 | CI41: 2023-01-01 | CJ41: 0 | CK41: 0 | CL41: 0 | CM41: 0 | CN41: 0 | CO41: 2023-01-01 | CP41: 0 | CQ41: 0 | CR41: 0 | CS41: 0 | CT41: 0 | CU41: 0 | CV41: AA | CW41: A | CX41: A | CY41: NO | CZ41: 5 | DA41: 0
P42: =IFERROR(VLOOKUP(O42,Importes!K:P,2,FALSE),"") ->  | R42: AM+E | S42: 0 | T42: =IFERROR(ROUND(IF(MOD(S42,30)=0,QUOTIENT(S42,30)*VLOOKUP(B42&"AM+E",Importes!$A$2:$F$14,6,FALSE)*(IF($Q42>100,0,$Q42)/100),S42*VLOOKUP(B42&"AM+E",Importes!$A$2:$F$14,5,FALSE)*(IF($Q42>100,0,$Q42)/100)),2),0) -> 0 | W42: =IF(V42="","",IF(V42>0,ROUND(IF(MOD(V42,30)=0,QUOTIENT(V42,30)*VLOOKUP(B42&"AM+E",Importes!$A$2:$F$14,6,FALSE)*(IF($U42>100,0,$U42)/100),V42*VLOOKUP(B42&"AM+E",Importes!$A$2:$F$14,5,FALSE)*(IF($U42>100,0,$U42)/100)),2),0)) ->  | AC42: Si | AQ42: =IF(VALUE($A42)=0,"",IF(AQ$11="","",IF($N42<AQ$6,"",IF($M42>AQ$6,"",IF(AND(OR($N42="",$N42>=AQ$6),$AA42="",$R42<>""),"F",IF(AND($AA42<=AQ$6,OR($AB42=$N42,$AB42>=AQ$6,IF($AB42="",$AD$5))),"h",IF($CC42>=AQ$6,"F",""))))))) ->  | BA42: =IF(VALUE($A42)=0,"",IF(BA$11="","",IF($N42<BA$6,"",IF($M42>BA$6,"",IF(AND(OR($N42="",$N42>=BA$6),$AA42="",$R42<>""),"F",IF(AND($AA42<=BA$6,OR($AB42=$N42,$AB42>=BA$6,IF($AB42="",$AD$5))),"h",IF($CC42>=BA$6,"F",""))))))) ->  | BK42: =IF(VALUE($A42)=0,"",IF(BK$11="","",IF($N42<BK$6,"",IF($M42>BK$6,"",IF(AND(OR($N42="",$N42>=BK$6),$AA42="",$R42<>""),"F",IF(AND($AA42<=BK$6,OR($AB42=$N42,$AB42>=BK$6,IF($AB42="",$AD$5))),"h",IF($CC42>=BK$6,"F",""))))))) ->  | BV42: 0 | BW42: 0 | BX42: 0 | BY42: 0 | BZ42: 0 | CA42: 0 | CB42: 2023-07-01 | CC42: 2023-07-31 | CD42: 0 | CE42: 0 | CF42: 2023-01-01 | CG42: 2023-07-31 | CH42: 00:00:00 | CI42: 2023-01-01 | CJ42: 0 | CK42: 0 | CL42: 0 | CM42: 0 | CN42: 0 | CO42: 2023-01-01 | CP42: 0 | CQ42: 0 | CR42: 0 | CS42: 0 | CT42: 0 | CU42: 0 | CV42: AA | CW42: A | CX42: A | CY42: NO | CZ42: 5 | DA42: 0
P43: =IFERROR(VLOOKUP(O43,Importes!K:P,2,FALSE),"") ->  | R43: AM+E | S43: 0 | T43: =IFERROR(ROUND(IF(MOD(S43,30)=0,QUOTIENT(S43,30)*VLOOKUP(B43&"AM+E",Importes!$A$2:$F$14,6,FALSE)*(IF($Q43>100,0,$Q43)/100),S43*VLOOKUP(B43&"AM+E",Importes!$A$2:$F$14,5,FALSE)*(IF($Q43>100,0,$Q43)/100)),2),0) -> 0 | W43: =IF(V43="","",IF(V43>0,ROUND(IF(MOD(V43,30)=0,QUOTIENT(V43,30)*VLOOKUP(B43&"AM+E",Importes!$A$2:$F$14,6,FALSE)*(IF($U43>100,0,$U43)/100),V43*VLOOKUP(B43&"AM+E",Importes!$A$2:$F$14,5,FALSE)*(IF($U43>100,0,$U43)/100)),2),0)) ->  | AC43: Si | BV43: 0 | BW43: 0 | BX43: 0 | BY43: 0 | BZ43: 0 | CA43: 0 | CB43: 2023-07-01 | CC43: 2023-07-31 | CD43: 0 | CE43: 0 | CF43: 2023-01-01 | CG43: 2023-07-31 | CH43: 00:00:00 | CI43: 2023-01-01 | CJ43: 0 | CK43: 0 | CL43: 0 | CM43: 0 | CN43: 0 | CO43: 2023-01-01 | CP43: 0 | CQ43: 0 | CR43: 0 | CS43: 0 | CT43: 0 | CU43: 0 | CV43: AA | CW43: A | CX43: A | CY43: NO | CZ43: 5 | DA43: 0
P44: =IFERROR(VLOOKUP(O44,Importes!K:P,2,FALSE),"") ->  | R44: AM+E | S44: 0 | T44: =IFERROR(ROUND(IF(MOD(S44,30)=0,QUOTIENT(S44,30)*VLOOKUP(B44&"AM+E",Importes!$A$2:$F$14,6,FALSE)*(IF($Q44>100,0,$Q44)/100),S44*VLOOKUP(B44&"AM+E",Importes!$A$2:$F$14,5,FALSE)*(IF($Q44>100,0,$Q44)/100)),2),0) -> 0 | W44: =IF(V44="","",IF(V44>0,ROUND(IF(MOD(V44,30)=0,QUOTIENT(V44,30)*VLOOKUP(B44&"AM+E",Importes!$A$2:$F$14,6,FALSE)*(IF($U44>100,0,$U44)/100),V44*VLOOKUP(B44&"AM+E",Importes!$A$2:$F$14,5,FALSE)*(IF($U44>100,0,$U44)/100)),2),0)) ->  | AA44: =IF(Z44="IT",M44,IF(Z44="AT",M44,"")) ->  | AB44: =IF(AND(AA44<>"",N44>0),N44,"") ->  | AC44: Si | AP44: =IF(IFERROR(VLOOKUP(G44,$AD$12:$AD$60,1,FALSE),"")="","",1) ->  | BV44: 0 | BW44: 0 | BX44: =IF(OR(Z44="IT",Z44="AT"),CG44+1-(CF44),0) -> 0 | BY44: =IF(Z44="AT",1,IF(IF(Z44="IT",CG44+1-(CF44),0)>15,15,IF(Z44="IT",CG44+1-(CF44),0))) -> 0 | BZ44: =IF(Z44="IT",IF(BX44-BW44>15,15,BX44-BW44),IF(Z44="AT",IF(BX44-BW44>1,1,BX44-BW44),0)) -> 0 | CA44: =IF(OR(AC44="SI",$CA$8="SI"),BY44-BZ44,IF(AND(AC44<>"SI",OR($CA$8="NON",$CA$8="<<>>")),IF(BZ44<=3,IF(BY44-BZ44-3<=0,IF(Z44="AT",IF(BZ44=1,0,1),0),BY44-BZ44-(3-BZ44)),BY44-BZ44),0)) -> 0 | CB44: =IF(M44<$T$8,$T$8,M44) -> 2023-07-01 | CC44: =IF(N44="",$AD$5,N44) -> 2023-07-31 | CD44: =IF(BV44+CE44>30,30,IF(AND(MONTH($H$7)=2,BV44>=DAY($AD$5),OR(AA44="",AA44<=$H$7)),30,IF(BV44+CA44>30,30,BV44+CA44))) -> 0 | CE44: 0 | CF44: =IF(Z44="at",IF(CH44<$AA$7,CH44,IF(CH44<$T$8,$T$8-1,CH44)),CI44) -> 2023-01-01 | CG44: =IF(OR(AB44="",AB44>$AD$5),IF(N44="",$AD$5,IF(N44>$AD$5,$AD$5,N44)),AB44) -> 2023-07-31 | CH44: =IF(Z44="AT",CI44,0) -> 00:00:00 | CI44: =IF(IF(AA44="",0,AA44)+3=3,VALUE(1&"-"&1&"-"&$AD$7),AA44) -> 2023-01-01 | CJ44: 0 | CK44: =IF(OR(Z44="IT",Z44="AT"),IF(CF44<CB44,CB44-(CF44),0),0) -> 0 | CL44: =IF(OR(Z44="IT",Z44="AT"),CG44+1-(CF44),0) -> 0 | CM44: =IF(OR(Z44="IT",Z44="AT"),IF(CK44>=15,12,IF(CK44<15,CK44,CK44-3)),0) -> 0 | CN44: =IF(AND(Z44="AT",CL44-CJ44=0),1,IF(Z44="IT",CU44,0)) -> 0 | CO44: =IF(M44<VALUE(1&"-"&1&"-"&IF(YEAR($AD$5)<$AD$7,YEAR($AD$5),$AD$7)),VALUE(1&"-"&1&"-"&IF(YEAR($AD$5)<$AD$7,YEAR($AD$5),$AD$7)),M44) -> 2023-01-01 | CP44: =IF(N44="",0,(DAYS360(CO44,N44)+1)/30*2.5) -> 0 | CQ44: =IF(CM44>=3,3,CM44) -> 0 | CR44: =IF(OR($CT$8="SI",$AC44="SI"),CQ44,3-CQ44) -> 0 | CS44: =IF(CK44>15,IF(OR($CT$8="SI",$AC44="SI"),15,12),IF(OR($CT$8="SI",$AC44="SI"),CK44,CK44-CQ44)) -> 0 | CT44: =IF(CL44-CR44-CQ44<0,0,IF(CL44-CR44-CQ44>12,IF(OR($CT$8="SI",$AC44="SI"),15,12),IF(CL44-CR44-CQ44>BW44,BW44-CR44,CL44-CR44-CQ44))) -> 0 | CU44: =IF(CT44-CS44>=IF(OR($CT$8="SI",$AC44="SI"),15,12),IF(OR($CT$8="SI",$AC44="SI"),15,12),CT44-CS44) -> 0 | CV44: =CW44&CX44&IF(OR(O44=510,O44=410),"INT","") -> AA | CW44: =IF(YEAR(M44)<YEAR($H$7),"A",IF(YEAR(M44)=YEAR($H$7),IF(MONTH(M44)<=MONTH($H$7),"A","NO"))) -> A | CX44: =IF(N44="","A",IF(YEAR(N44)>YEAR($H$7),"A",IF(YEAR(N44)=YEAR($H$7),IF(MONTH(N44)>MONTH($H$7),"A",IF(MONTH(N44)=MONTH($H$7),"L","B"))))) -> A | CY44: =IFERROR(IF(L44<33,"NO",IF(OR(CV44="AA",CV44="AL"),"SI",IF(OR(CV44="AAINT",CV44="ALINT"),"SI"))),"") -> NO | CZ44: 5 | DA44: 0
P45: =IFERROR(VLOOKUP(O45,Importes!K:P,2,FALSE),"") ->  | R45: AM+E | S45: 0 | T45: =IFERROR(ROUND(IF(MOD(S45,30)=0,QUOTIENT(S45,30)*VLOOKUP(B45&"AM+E",Importes!$A$2:$F$14,6,FALSE)*(IF($Q45>100,0,$Q45)/100),S45*VLOOKUP(B45&"AM+E",Importes!$A$2:$F$14,5,FALSE)*(IF($Q45>100,0,$Q45)/100)),2),0) -> 0 | W45: =IF(V45="","",IF(V45>0,ROUND(IF(MOD(V45,30)=0,QUOTIENT(V45,30)*VLOOKUP(B45&"AM+E",Importes!$A$2:$F$14,6,FALSE)*(IF($U45>100,0,$U45)/100),V45*VLOOKUP(B45&"AM+E",Importes!$A$2:$F$14,5,FALSE)*(IF($U45>100,0,$U45)/100)),2),0)) ->  | AC45: Si | BV45: 0 | BW45: 0 | BX45: 0 | BY45: 0 | BZ45: 0 | CA45: 0 | CB45: 2023-07-01 | CC45: 2023-07-31 | CD45: 0 | CE45: 0 | CF45: 2023-01-01 | CG45: 2023-07-31 | CH45: 00:00:00 | CI45: 2023-01-01 | CJ45: 0 | CK45: 0 | CL45: 0 | CM45: 0 | CN45: 0 | CO45: 2023-01-01 | CP45: 0 | CQ45: 0 | CR45: 0 | CS45: 0 | CT45: 0 | CU45: 0 | CV45: AA | CW45: A | CX45: A | CY45: NO | CZ45: 5 | DA45: 0
P46: =IFERROR(VLOOKUP(O46,Importes!K:P,2,FALSE),"") ->  | R46: AM+E | S46: 0 | T46: =IFERROR(ROUND(IF(MOD(S46,30)=0,QUOTIENT(S46,30)*VLOOKUP(B46&"AM+E",Importes!$A$2:$F$14,6,FALSE)*(IF($Q46>100,0,$Q46)/100),S46*VLOOKUP(B46&"AM+E",Importes!$A$2:$F$14,5,FALSE)*(IF($Q46>100,0,$Q46)/100)),2),0) -> 0 | W46: =IF(V46="","",IF(V46>0,ROUND(IF(MOD(V46,30)=0,QUOTIENT(V46,30)*VLOOKUP(B46&"AM+E",Importes!$A$2:$F$14,6,FALSE)*(IF($U46>100,0,$U46)/100),V46*VLOOKUP(B46&"AM+E",Importes!$A$2:$F$14,5,FALSE)*(IF($U46>100,0,$U46)/100)),2),0)) ->  | AC46: Si | BV46: 0 | BW46: 0 | BX46: 0 | BY46: 0 | BZ46: 0 | CA46: 0 | CB46: 2023-07-01 | CC46: 2023-07-31 | CD46: 0 | CE46: 0 | CF46: 2023-01-01 | CG46: 2023-07-31 | CH46: 00:00:00 | CI46: 2023-01-01 | CJ46: 0 | CK46: 0 | CL46: 0 | CM46: 0 | CN46: 0 | CO46: 2023-01-01 | CP46: 0 | CQ46: 0 | CR46: 0 | CS46: 0 | CT46: 0 | CU46: 0 | CV46: AA | CW46: A | CX46: A | CY46: NO | CZ46: 5 | DA46: 0
P47: =IFERROR(VLOOKUP(O47,Importes!K:P,2,FALSE),"") ->  | R47: AM+E | S47: 0 | T47: =IFERROR(ROUND(IF(MOD(S47,30)=0,QUOTIENT(S47,30)*VLOOKUP(B47&"AM+E",Importes!$A$2:$F$14,6,FALSE)*(IF($Q47>100,0,$Q47)/100),S47*VLOOKUP(B47&"AM+E",Importes!$A$2:$F$14,5,FALSE)*(IF($Q47>100,0,$Q47)/100)),2),0) -> 0 | W47: =IF(V47="","",IF(V47>0,ROUND(IF(MOD(V47,30)=0,QUOTIENT(V47,30)*VLOOKUP(B47&"AM+E",Importes!$A$2:$F$14,6,FALSE)*(IF($U47>100,0,$U47)/100),V47*VLOOKUP(B47&"AM+E",Importes!$A$2:$F$14,5,FALSE)*(IF($U47>100,0,$U47)/100)),2),0)) ->  | AC47: Si | BV47: 0 | BW47: 0 | BX47: 0 | BY47: 0 | BZ47: 0 | CA47: 0 | CB47: 2023-07-01 | CC47: 2023-07-31 | CD47: 0 | CE47: 0 | CF47: 2023-01-01 | CG47: 2023-07-31 | CH47: 00:00:00 | CI47: 2023-01-01 | CJ47: 0 | CK47: 0 | CL47: 0 | CM47: 0 | CN47: 0 | CO47: 2023-01-01 | CP47: 0 | CQ47: 0 | CR47: 0 | CS47: 0 | CT47: 0 | CU47: 0 | CV47: AA | CW47: A | CX47: A | CY47: NO | CZ47: 5 | DA47: 0
P48: =IFERROR(VLOOKUP(O48,Importes!K:P,2,FALSE),"") ->  | R48: AM+E | S48: 0 | T48: =IFERROR(ROUND(IF(MOD(S48,30)=0,QUOTIENT(S48,30)*VLOOKUP(B48&"AM+E",Importes!$A$2:$F$14,6,FALSE)*(IF($Q48>100,0,$Q48)/100),S48*VLOOKUP(B48&"AM+E",Importes!$A$2:$F$14,5,FALSE)*(IF($Q48>100,0,$Q48)/100)),2),0) -> 0 | W48: =IF(V48="","",IF(V48>0,ROUND(IF(MOD(V48,30)=0,QUOTIENT(V48,30)*VLOOKUP(B48&"AM+E",Importes!$A$2:$F$14,6,FALSE)*(IF($U48>100,0,$U48)/100),V48*VLOOKUP(B48&"AM+E",Importes!$A$2:$F$14,5,FALSE)*(IF($U48>100,0,$U48)/100)),2),0)) ->  | AC48: Si | BV48: 0 | BW48: 0 | BX48: 0 | BY48: 0 | BZ48: 0 | CA48: 0 | CB48: 2023-07-01 | CC48: 2023-07-31 | CD48: 0 | CE48: 0 | CF48: 2023-01-01 | CG48: 2023-07-31 | CH48: 00:00:00 | CI48: 2023-01-01 | CJ48: 0 | CK48: 0 | CL48: 0 | CM48: 0 | CN48: 0 | CO48: 2023-01-01 | CP48: 0 | CQ48: 0 | CR48: 0 | CS48: 0 | CT48: 0 | CU48: 0 | CV48: AA | CW48: A | CX48: A | CY48: NO | CZ48: 5 | DA48: 0
P49: =IFERROR(VLOOKUP(O49,Importes!K:P,2,FALSE),"") ->  | R49: AM+E | S49: 0 | T49: =IFERROR(ROUND(IF(MOD(S49,30)=0,QUOTIENT(S49,30)*VLOOKUP(B49&"AM+E",Importes!$A$2:$F$14,6,FALSE)*(IF($Q49>100,0,$Q49)/100),S49*VLOOKUP(B49&"AM+E",Importes!$A$2:$F$14,5,FALSE)*(IF($Q49>100,0,$Q49)/100)),2),0) -> 0 | W49: =IF(V49="","",IF(V49>0,ROUND(IF(MOD(V49,30)=0,QUOTIENT(V49,30)*VLOOKUP(B49&"AM+E",Importes!$A$2:$F$14,6,FALSE)*(IF($U49>100,0,$U49)/100),V49*VLOOKUP(B49&"AM+E",Importes!$A$2:$F$14,5,FALSE)*(IF($U49>100,0,$U49)/100)),2),0)) ->  | AC49: Si | BV49: 0 | BW49: 0 | BX49: 0 | BY49: 0 | BZ49: 0 | CA49: 0 | CB49: 2023-07-01 | CC49: 2023-07-31 | CD49: 0 | CE49: 0 | CF49: 2023-01-01 | CG49: 2023-07-31 | CH49: 00:00:00 | CI49: 2023-01-01 | CJ49: 0 | CK49: 0 | CL49: 0 | CM49: 0 | CN49: 0 | CO49: 2023-01-01 | CP49: 0 | CQ49: 0 | CR49: 0 | CS49: 0 | CT49: 0 | CU49: 0 | CV49: AA | CW49: A | CX49: A | CY49: NO | CZ49: 5 | DA49: 0
P50: =IFERROR(VLOOKUP(O50,Importes!K:P,2,FALSE),"") ->  | R50: AM+E | S50: 0 | T50: =IFERROR(ROUND(IF(MOD(S50,30)=0,QUOTIENT(S50,30)*VLOOKUP(B50&"AM+E",Importes!$A$2:$F$14,6,FALSE)*(IF($Q50>100,0,$Q50)/100),S50*VLOOKUP(B50&"AM+E",Importes!$A$2:$F$14,5,FALSE)*(IF($Q50>100,0,$Q50)/100)),2),0) -> 0 | W50: =IF(V50="","",IF(V50>0,ROUND(IF(MOD(V50,30)=0,QUOTIENT(V50,30)*VLOOKUP(B50&"AM+E",Importes!$A$2:$F$14,6,FALSE)*(IF($U50>100,0,$U50)/100),V50*VLOOKUP(B50&"AM+E",Importes!$A$2:$F$14,5,FALSE)*(IF($U50>100,0,$U50)/100)),2),0)) ->  | AC50: Si | BV50: 0 | BW50: 0 | BX50: 0 | BY50: 0 | BZ50: 0 | CA50: 0 | CB50: 2023-07-01 | CC50: 2023-07-31 | CD50: 0 | CE50: 0 | CF50: 2023-01-01 | CG50: 2023-07-31 | CH50: 00:00:00 | CI50: 2023-01-01 | CJ50: 0 | CK50: 0 | CL50: 0 | CM50: 0 | CN50: 0 | CO50: 2023-01-01 | CP50: 0 | CQ50: 0 | CR50: 0 | CS50: 0 | CT50: 0 | CU50: 0 | CV50: AA | CW50: A | CX50: A | CY50: NO | CZ50: 5 | DA50: 0
P51: =IFERROR(VLOOKUP(O51,Importes!K:P,2,FALSE),"") ->  | R51: AM+E | S51: 0 | T51: =IFERROR(ROUND(IF(MOD(S51,30)=0,QUOTIENT(S51,30)*VLOOKUP(B51&"AM+E",Importes!$A$2:$F$14,6,FALSE)*(IF($Q51>100,0,$Q51)/100),S51*VLOOKUP(B51&"AM+E",Importes!$A$2:$F$14,5,FALSE)*(IF($Q51>100,0,$Q51)/100)),2),0) -> 0 | W51: =IF(V51="","",IF(V51>0,ROUND(IF(MOD(V51,30)=0,QUOTIENT(V51,30)*VLOOKUP(B51&"AM+E",Importes!$A$2:$F$14,6,FALSE)*(IF($U51>100,0,$U51)/100),V51*VLOOKUP(B51&"AM+E",Importes!$A$2:$F$14,5,FALSE)*(IF($U51>100,0,$U51)/100)),2),0)) ->  | AC51: Si | AP51: =IF(IFERROR(VLOOKUP(G51,$AD$12:$AD$60,1,FALSE),"")="","",1) ->  | BV51: 0 | BW51: 0 | BX51: 0 | BY51: 0 | BZ51: 0 | CA51: 0 | CB51: 2023-07-01 | CC51: 2023-07-31 | CD51: 0 | CE51: 0 | CF51: 2023-01-01 | CG51: 2023-07-31 | CH51: 00:00:00 | CI51: 2023-01-01 | CJ51: 0 | CK51: 0 | CL51: 0 | CM51: 0 | CN51: 0 | CO51: 2023-01-01 | CP51: 0 | CQ51: 0 | CR51: 0 | CS51: 0 | CT51: 0 | CU51: 0 | CV51: AA | CW51: A | CX51: A | CY51: NO | CZ51: 5 | DA51: 0
P52: =IFERROR(VLOOKUP(O52,Importes!K:P,2,FALSE),"") ->  | R52: AM+E | S52: 0 | T52: =IFERROR(ROUND(IF(MOD(S52,30)=0,QUOTIENT(S52,30)*VLOOKUP(B52&"AM+E",Importes!$A$2:$F$14,6,FALSE)*(IF($Q52>100,0,$Q52)/100),S52*VLOOKUP(B52&"AM+E",Importes!$A$2:$F$14,5,FALSE)*(IF($Q52>100,0,$Q52)/100)),2),0) -> 0 | W52: =IF(V52="","",IF(V52>0,ROUND(IF(MOD(V52,30)=0,QUOTIENT(V52,30)*VLOOKUP(B52&"AM+E",Importes!$A$2:$F$14,6,FALSE)*(IF($U52>100,0,$U52)/100),V52*VLOOKUP(B52&"AM+E",Importes!$A$2:$F$14,5,FALSE)*(IF($U52>100,0,$U52)/100)),2),0)) ->  | AC52: Si | AQ52: =IF(VALUE($A52)=0,"",IF(AQ$11="","",IF($N52<AQ$6,"",IF($M52>AQ$6,"",IF(AND(OR($N52="",$N52>=AQ$6),$AA52="",$R52<>""),"F",IF(AND($AA52<=AQ$6,OR($AB52=$N52,$AB52>=AQ$6,IF($AB52="",$AD$5))),"h",IF($CC52>=AQ$6,"F",""))))))) ->  | BA52: =IF(VALUE($A52)=0,"",IF(BA$11="","",IF($N52<BA$6,"",IF($M52>BA$6,"",IF(AND(OR($N52="",$N52>=BA$6),$AA52="",$R52<>""),"F",IF(AND($AA52<=BA$6,OR($AB52=$N52,$AB52>=BA$6,IF($AB52="",$AD$5))),"h",IF($CC52>=BA$6,"F",""))))))) ->  | BK52: =IF(VALUE($A52)=0,"",IF(BK$11="","",IF($N52<BK$6,"",IF($M52>BK$6,"",IF(AND(OR($N52="",$N52>=BK$6),$AA52="",$R52<>""),"F",IF(AND($AA52<=BK$6,OR($AB52=$N52,$AB52>=BK$6,IF($AB52="",$AD$5))),"h",IF($CC52>=BK$6,"F",""))))))) ->  | BV52: 0 | BW52: 0 | BX52: 0 | BY52: 0 | BZ52: 0 | CA52: 0 | CB52: 2023-07-01 | CC52: 2023-07-31 | CD52: 0 | CE52: 0 | CF52: 2023-01-01 | CG52: 2023-07-31 | CH52: 00:00:00 | CI52: 2023-01-01 | CJ52: 0 | CK52: 0 | CL52: 0 | CM52: 0 | CN52: 0 | CO52: 2023-01-01 | CP52: 0 | CQ52: 0 | CR52: 0 | CS52: 0 | CT52: 0 | CU52: 0 | CV52: AA | CW52: A | CX52: A | CY52: NO | CZ52: 5 | DA52: 0
P53: =IFERROR(VLOOKUP(O53,Importes!K:P,2,FALSE),"") ->  | R53: AM+E | S53: 0 | T53: =IFERROR(ROUND(IF(MOD(S53,30)=0,QUOTIENT(S53,30)*VLOOKUP(B53&"AM+E",Importes!$A$2:$F$14,6,FALSE)*(IF($Q53>100,0,$Q53)/100),S53*VLOOKUP(B53&"AM+E",Importes!$A$2:$F$14,5,FALSE)*(IF($Q53>100,0,$Q53)/100)),2),0) -> 0 | W53: =IF(V53="","",IF(V53>0,ROUND(IF(MOD(V53,30)=0,QUOTIENT(V53,30)*VLOOKUP(B53&"AM+E",Importes!$A$2:$F$14,6,FALSE)*(IF($U53>100,0,$U53)/100),V53*VLOOKUP(B53&"AM+E",Importes!$A$2:$F$14,5,FALSE)*(IF($U53>100,0,$U53)/100)),2),0)) ->  | AC53: Si | AK53: =IF($T53>0,"X","") ->  | BV53: 0 | BW53: 0 | BX53: 0 | BY53: 0 | BZ53: 0 | CA53: 0 | CB53: 2023-07-01 | CC53: 2023-07-31 | CD53: 0 | CE53: 0 | CF53: 2023-01-01 | CG53: 2023-07-31 | CH53: 00:00:00 | CI53: 2023-01-01 | CJ53: 0 | CK53: 0 | CL53: 0 | CM53: 0 | CN53: 0 | CO53: 2023-01-01 | CP53: 0 | CQ53: 0 | CR53: 0 | CS53: 0 | CT53: 0 | CU53: 0 | CV53: AA | CW53: A | CX53: A | CY53: NO | CZ53: 5 | DA53: 0
P54: =IFERROR(VLOOKUP(O54,Importes!K:P,2,FALSE),"") ->  | R54: AM+E | S54: 0 | T54: =IFERROR(ROUND(IF(MOD(S54,30)=0,QUOTIENT(S54,30)*VLOOKUP(B54&"AM+E",Importes!$A$2:$F$14,6,FALSE)*(IF($Q54>100,0,$Q54)/100),S54*VLOOKUP(B54&"AM+E",Importes!$A$2:$F$14,5,FALSE)*(IF($Q54>100,0,$Q54)/100)),2),0) -> 0 | W54: =IF(V54="","",IF(V54>0,ROUND(IF(MOD(V54,30)=0,QUOTIENT(V54,30)*VLOOKUP(B54&"AM+E",Importes!$A$2:$F$14,6,FALSE)*(IF($U54>100,0,$U54)/100),V54*VLOOKUP(B54&"AM+E",Importes!$A$2:$F$14,5,FALSE)*(IF($U54>100,0,$U54)/100)),2),0)) ->  | AC54: Si | BV54: 0 | BW54: 0 | BX54: 0 | BY54: 0 | BZ54: 0 | CA54: 0 | CB54: 2023-07-01 | CC54: 2023-07-31 | CD54: 0 | CE54: 0 | CF54: 2023-01-01 | CG54: 2023-07-31 | CH54: 00:00:00 | CI54: 2023-01-01 | CJ54: 0 | CK54: 0 | CL54: 0 | CM54: 0 | CN54: 0 | CO54: 2023-01-01 | CP54: 0 | CQ54: 0 | CR54: 0 | CS54: 0 | CT54: 0 | CU54: 0 | CV54: AA | CW54: A | CX54: A | CY54: NO | CZ54: 5 | DA54: 0
P55: =IFERROR(VLOOKUP(O55,Importes!K:P,2,FALSE),"") ->  | R55: AM+E | S55: 0 | T55: =IFERROR(ROUND(IF(MOD(S55,30)=0,QUOTIENT(S55,30)*VLOOKUP(B55&"AM+E",Importes!$A$2:$F$14,6,FALSE)*(IF($Q55>100,0,$Q55)/100),S55*VLOOKUP(B55&"AM+E",Importes!$A$2:$F$14,5,FALSE)*(IF($Q55>100,0,$Q55)/100)),2),0) -> 0 | W55: =IF(V55="","",IF(V55>0,ROUND(IF(MOD(V55,30)=0,QUOTIENT(V55,30)*VLOOKUP(B55&"AM+E",Importes!$A$2:$F$14,6,FALSE)*(IF($U55>100,0,$U55)/100),V55*VLOOKUP(B55&"AM+E",Importes!$A$2:$F$14,5,FALSE)*(IF($U55>100,0,$U55)/100)),2),0)) ->  | AC55: Si | BV55: 0 | BW55: 0 | BX55: 0 | BY55: 0 | BZ55: 0 | CA55: 0 | CB55: 2023-07-01 | CC55: 2023-07-31 | CD55: 0 | CE55: 0 | CF55: 2023-01-01 | CG55: 2023-07-31 | CH55: 00:00:00 | CI55: 2023-01-01 | CJ55: 0 | CK55: 0 | CL55: 0 | CM55: 0 | CN55: 0 | CO55: 2023-01-01 | CP55: 0 | CQ55: 0 | CR55: 0 | CS55: 0 | CT55: 0 | CU55: 0 | CV55: AA | CW55: A | CX55: A | CY55: NO | CZ55: 5 | DA55: 0
P56: =IFERROR(VLOOKUP(O56,Importes!K:P,2,FALSE),"") ->  | R56: AM+E | S56: 0 | T56: =IFERROR(ROUND(IF(MOD(S56,30)=0,QUOTIENT(S56,30)*VLOOKUP(B56&"AM+E",Importes!$A$2:$F$14,6,FALSE)*(IF($Q56>100,0,$Q56)/100),S56*VLOOKUP(B56&"AM+E",Importes!$A$2:$F$14,5,FALSE)*(IF($Q56>100,0,$Q56)/100)),2),0) -> 0 | W56: =IF(V56="","",IF(V56>0,ROUND(IF(MOD(V56,30)=0,QUOTIENT(V56,30)*VLOOKUP(B56&"AM+E",Importes!$A$2:$F$14,6,FALSE)*(IF($U56>100,0,$U56)/100),V56*VLOOKUP(B56&"AM+E",Importes!$A$2:$F$14,5,FALSE)*(IF($U56>100,0,$U56)/100)),2),0)) ->  | AC56: Si | BV56: 0 | BW56: 0 | BX56: 0 | BY56: 0 | BZ56: 0 | CA56: 0 | CB56: 2023-07-01 | CC56: 2023-07-31 | CD56: 0 | CE56: 0 | CF56: 2023-01-01 | CG56: 2023-07-31 | CH56: 00:00:00 | CI56: 2023-01-01 | CJ56: 0 | CK56: 0 | CL56: 0 | CM56: 0 | CN56: 0 | CO56: 2023-01-01 | CP56: 0 | CQ56: 0 | CR56: 0 | CS56: 0 | CT56: 0 | CU56: 0 | CV56: AA | CW56: A | CX56: A | CY56: NO | CZ56: 5 | DA56: 0
P57: =IFERROR(VLOOKUP(O57,Importes!K:P,2,FALSE),"") ->  | R57: AM+E | S57: 0 | T57: =IFERROR(ROUND(IF(MOD(S57,30)=0,QUOTIENT(S57,30)*VLOOKUP(B57&"AM+E",Importes!$A$2:$F$14,6,FALSE)*(IF($Q57>100,0,$Q57)/100),S57*VLOOKUP(B57&"AM+E",Importes!$A$2:$F$14,5,FALSE)*(IF($Q57>100,0,$Q57)/100)),2),0) -> 0 | W57: =IF(V57="","",IF(V57>0,ROUND(IF(MOD(V57,30)=0,QUOTIENT(V57,30)*VLOOKUP(B57&"AM+E",Importes!$A$2:$F$14,6,FALSE)*(IF($U57>100,0,$U57)/100),V57*VLOOKUP(B57&"AM+E",Importes!$A$2:$F$14,5,FALSE)*(IF($U57>100,0,$U57)/100)),2),0)) ->  | AC57: Si | BV57: 0 | BW57: 0 | BX57: 0 | BY57: 0 | BZ57: 0 | CA57: 0 | CB57: 2023-07-01 | CC57: 2023-07-31 | CD57: 0 | CE57: 0 | CF57: 2023-01-01 | CG57: 2023-07-31 | CH57: 00:00:00 | CI57: 2023-01-01 | CJ57: 0 | CK57: 0 | CL57: 0 | CM57: 0 | CN57: 0 | CO57: 2023-01-01 | CP57: 0 | CQ57: 0 | CR57: 0 | CS57: 0 | CT57: 0 | CU57: 0 | CV57: AA | CW57: A | CX57: A | CY57: NO | CZ57: 5 | DA57: 0
P58: =IFERROR(VLOOKUP(O58,Importes!K:P,2,FALSE),"") ->  | R58: AM+E | S58: 0 | T58: =IFERROR(ROUND(IF(MOD(S58,30)=0,QUOTIENT(S58,30)*VLOOKUP(B58&"AM+E",Importes!$A$2:$F$14,6,FALSE)*(IF($Q58>100,0,$Q58)/100),S58*VLOOKUP(B58&"AM+E",Importes!$A$2:$F$14,5,FALSE)*(IF($Q58>100,0,$Q58)/100)),2),0) -> 0 | W58: =IF(V58="","",IF(V58>0,ROUND(IF(MOD(V58,30)=0,QUOTIENT(V58,30)*VLOOKUP(B58&"AM+E",Importes!$A$2:$F$14,6,FALSE)*(IF($U58>100,0,$U58)/100),V58*VLOOKUP(B58&"AM+E",Importes!$A$2:$F$14,5,FALSE)*(IF($U58>100,0,$U58)/100)),2),0)) ->  | AC58: Si | BV58: 0 | BW58: 0 | BX58: 0 | BY58: 0 | BZ58: 0 | CA58: 0 | CB58: 2023-07-01 | CC58: 2023-07-31 | CD58: 0 | CE58: 0 | CF58: 2023-01-01 | CG58: 2023-07-31 | CH58: 00:00:00 | CI58: 2023-01-01 | CJ58: 0 | CK58: 0 | CL58: 0 | CM58: 0 | CN58: 0 | CO58: 2023-01-01 | CP58: 0 | CQ58: 0 | CR58: 0 | CS58: 0 | CT58: 0 | CU58: 0 | CV58: AA | CW58: A | CX58: A | CY58: NO | CZ58: 5 | DA58: 0
P59: =IFERROR(VLOOKUP(O59,Importes!K:P,2,FALSE),"") ->  | R59: AM+E | S59: 0 | T59: =IFERROR(ROUND(IF(MOD(S59,30)=0,QUOTIENT(S59,30)*VLOOKUP(B59&"AM+E",Importes!$A$2:$F$14,6,FALSE)*(IF($Q59>100,0,$Q59)/100),S59*VLOOKUP(B59&"AM+E",Importes!$A$2:$F$14,5,FALSE)*(IF($Q59>100,0,$Q59)/100)),2),0) -> 0 | W59: =IF(V59="","",IF(V59>0,ROUND(IF(MOD(V59,30)=0,QUOTIENT(V59,30)*VLOOKUP(B59&"AM+E",Importes!$A$2:$F$14,6,FALSE)*(IF($U59>100,0,$U59)/100),V59*VLOOKUP(B59&"AM+E",Importes!$A$2:$F$14,5,FALSE)*(IF($U59>100,0,$U59)/100)),2),0)) ->  | AC59: Si | BV59: 0 | BW59: 0 | BX59: 0 | BY59: 0 | BZ59: 0 | CA59: 0 | CB59: 2023-07-01 | CC59: 2023-07-31 | CD59: 0 | CE59: 0 | CF59: 2023-01-01 | CG59: 2023-07-31 | CH59: 00:00:00 | CI59: 2023-01-01 | CJ59: 0 | CK59: 0 | CL59: 0 | CM59: 0 | CN59: 0 | CO59: 2023-01-01 | CP59: 0 | CQ59: 0 | CR59: 0 | CS59: 0 | CT59: 0 | CU59: 0 | CV59: AA | CW59: A | CX59: A | CY59: NO | CZ59: 5 | DA59: 0
P60: =IFERROR(VLOOKUP(O60,Importes!K:P,2,FALSE),"") ->  | R60: AM+E | S60: 0 | T60: =IFERROR(ROUND(IF(MOD(S60,30)=0,QUOTIENT(S60,30)*VLOOKUP(B60&"AM+E",Importes!$A$2:$F$14,6,FALSE)*(IF($Q60>100,0,$Q60)/100),S60*VLOOKUP(B60&"AM+E",Importes!$A$2:$F$14,5,FALSE)*(IF($Q60>100,0,$Q60)/100)),2),0) -> 0 | W60: =IF(V60="","",IF(V60>0,ROUND(IF(MOD(V60,30)=0,QUOTIENT(V60,30)*VLOOKUP(B60&"AM+E",Importes!$A$2:$F$14,6,FALSE)*(IF($U60>100,0,$U60)/100),V60*VLOOKUP(B60&"AM+E",Importes!$A$2:$F$14,5,FALSE)*(IF($U60>100,0,$U60)/100)),2),0)) ->  | AC60: Si | BV60: 0 | BW60: 0 | BX60: 0 | BY60: 0 | BZ60: 0 | CA60: 0 | CB60: 2023-07-01 | CC60: 2023-07-31 | CD60: 0 | CE60: 0 | CF60: 2023-01-01 | CG60: 2023-07-31 | CH60: 00:00:00 | CI60: 2023-01-01 | CJ60: 0 | CK60: 0 | CL60: 0 | CM60: 0 | CN60: 0 | CO60: 2023-01-01 | CP60: 0 | CQ60: 0 | CR60: 0 | CS60: 0 | CT60: 0 | CU60: 0 | CV60: AA | CW60: A | CX60: A | CY60: NO | CZ60: 5 | DA60: 0
G62: Lugar e data:
G63: SINATURA DA PERSOA REPRESENTANTE

Sheet Importes (hidden)
A1: Códigos | C1: SMI 2018 | D1: =H1/30 -> 36 | E1: =D1/12*2 -> 6 | F1: Achega/mes | G1: SMI 2019 | H1: 1080 | K1: cod | M1: tipo | N1: tempo | O1: nome | P1: obxecto
A2: =B2&C2 -> 0AM+E | B2: 0 | C2: AM+E | D2: =D3+D4 -> 0.5 | E2: =ROUND(D2*$D$1+$E$1*D2,2) -> 21 | F2: =ROUND(D2*$H$1+$I$2*D2,2) -> 630 | H2: Prorrata 2PE | I2: =H1/12*2 -> 180 | K2: 100 | L2: =IF(M2="Indefinido","Ind","Temp") -> Ind | M2: Indefinido | N2: TIEMPO COMPLETO | O2: ORDINARIO
A3: 0AM | B3: 0 | C3: AM | D3: 0.5 | E3: =ROUND(D3*$D$1,2) -> 18 | F3: =ROUND(D3*$H$1,2) -> 540 | K3: 109 | L3: =IF(M3="Indefinido","Ind","Temp") -> Ind | M3: Indefinido | N3: TIEMPO COMPLETO | O3: FOMENTO CONTRATACIÓN INDEFINIDA / EMPLEO ESTABLE | P3: TRANSFORMACIÓN CONTRATO Temporal
K4: 130 | L4: Ind | M4: Indefinido | N4: TIEMPO COMPLETO | O4: MINUSVÁLIDOS
A5: =B5&C5 -> 0CP | B5: 0 | C5: CP | D5: =0.5/6 -> 0.08 | E5: =ROUND(D5*$D$1,2) -> 2.88 | F5: =ROUND(D5*$H$1,2) -> 86.4 | K5: 139 | L5: Ind | M5: Indefinido | N5: TIEMPO COMPLETO | O5: MINUSVÁLIDOS | P5: TRANSFORMACIÓN CONTRATO Temporal
A6: =B6&C6 -> 0CV | B6: 0 | C6: CV | D6: 0.5 | E6: =ROUND(D6*$D$1,2) -> 18 | F6: =ROUND(D6*$H$1,2) -> 540 | K6: 150 | L6: Ind | M6: Indefinido | N6: TIEMPO COMPLETO | O6: FOMENTO CONTRATACIÓN INDEFINIDA / EMPLEO ESTABLE | P6: INICIAL
A7: 0CV+E | B7: 0 | C7: CV+E | D7: =D3+D4 -> 0.5 | E7: 18 | F7: 540 | K7: 189 | L7: Ind | M7: Indefinido | N7: TIEMPO COMPLETO | P7: TRANSFORMACIÓN CONTRATO Temporal
K8: 200 | L8: Ind | M8: Indefinido | N8: TIEMPO PARCIAL | O8: ORDINARIO
A9: 1AM+E | B9: 1 | C9: AM+E | D9: 0.6 | E9: =ROUND(D9*$D$1+$E$1*D9,2) -> 25.2 | F9: =ROUND(D9*$H$1+$I$2*D9,2) -> 756 | K9: 209 | L9: Ind | M9: Indefinido | N9: TIEMPO PARCIAL | O9: FOMENTO CONTRATACIÓN INDEFINIDA / EMPLEO ESTABLE | P9: TRANSFORMACIÓN CONTRATO Temporal
A10: 1AM | B10: 1 | C10: AM | D10: 0.6 | E10: =ROUND(D10*$D$1,2) -> 21.6 | F10: =ROUND(D10*$H$1,2) -> 648 | K10: 230 | L10: Ind | M10: Indefinido | N10: TIEMPO PARCIAL | O10: MINUSVÁLIDOS
K11: 239 | L11: Ind | M11: Indefinido | N11: TIEMPO PARCIAL | O11: MINUSVÁLIDOS | P11: TRANSFORMACIÓN CONTRATO Temporal
A12: 1CP | B12: 1 | C12: CP | D12: =0.6/6 -> 0.1 | E12: =ROUND(D12*$D$1,2) -> 3.6 | F12: =ROUND(D12*$H$1,2) -> 108 | K12: 250 | L12: Ind | M12: Indefinido | N12: TIEMPO PARCIAL | O12: FOMENTO CONTRATACIÓN INDEFINIDA / EMPLEO ESTABLE | P12: INICIAL
A13: 1CV | B13: 1 | C13: CV | D13: 0.6 | E13: =ROUND(D13*$D$1,2) -> 21.6 | F13: =ROUND(D13*$H$1,2) -> 648 | K13: 289 | L13: Ind | M13: Indefinido | N13: TIEMPO PARCIAL | P13: TRANSFORMACIÓN CONTRATO Temporal
A14: 1CV+E | B14: 1 | C14: CV+E | D14: 0.6 | E14: =ROUND(D14*$D$1+$E$1*D14,2) -> 25.2 | F14: =ROUND(D14*$H$1+$I$2*D14,2) -> 756 | K14: 300 | L14: Ind | M14: Indefinido | N14: FIJO/DISCONTINUO
K15: 309 | L15: Ind | M15: Indefinido | N15: FIJO/DISCONTINUO | O15: FOMENTO CONTRATACIÓN INDEFINIDA / EMPLEO ESTABLE | P15: TRANSFORMACIÓN CONTRATO Temporal
A16: Minusvalía | C16: Tipo | K16: 330 | L16: Ind | M16: Indefinido | N16: FIJO/DISCONTINUO | O16: MINUSVÁLIDOS
A17: Pensionista | C17: minus | K17: 350 | L17: Ind | M17: Indefinido | N17: FIJO/DISCONTINUO | O17: FOMENTO CONTRATACIÓN INDEFINIDA / EMPLEO ESTABLE | P17: INICIAL
A18: Definitiva | C18: Física | K18: 389 | L18: Ind | M18: Indefinido | N18: FIJO/DISCONTINUO | P18: TRANSFORMACIÓN CONTRATO Temporal
A19: Provisional | C19: Sensorial | K19: 401 | L19: Temp | M19: Duración Determinada | N19: TIEMPO COMPLETO | O19: OBRA O SERVICIO DETERMINADO
C20: P. Cerebral | K20: 402 | L20: Temp | M20: Duración Determinada | N20: TIEMPO COMPLETO | O20: EVENTUAL POR CIRCUNSTANCIAS DE LA PRODUCCIÓN
A21: sexo | C21: Enf. Mental | K21: 403 | L21: Temp | M21: Duración Determinada | N21: TIEMPO COMPLETO | O21: INSERCIÓN
A22: H | C22: D. Intelectual | K22: 408 | L22: Temp | M22: Temporal | N22: TIEMPO COMPLETO | P22: CARÁCTER ADMINISTRATIVO
A23: M | C23: Psíquica | K23: 410 | L23: Temp | M23: Duración Determinada | N23: TIEMPO COMPLETO | O23: INTERINIDAD
K24: 418 | L24: Temp | M24: Duración Determinada | N24: TIEMPO COMPLETO | O24: INTERINIDAD | P24: CARÁCTER ADMINISTRATIVO
K25: 420 | L25: Temp | M25: Temporal | N25: TIEMPO COMPLETO | O25: PRÁCTICAS
A26: Conv | K26: 421 | L26: Temp | M26: Temporal | N26: TIEMPO COMPLETO | O26: FORMACIÓN
A27: Baixa | K27: 430 | L27: Temp | M27: Temporal | N27: TIEMPO COMPLETO | O27: MINUSVÁLIDOS
A28: Si | K28: 441 | L28: Temp | M28: Temporal | N28: TIEMPO COMPLETO | O28: RELEVO
A29: Non | K29: 450 | L29: Temp | M29: Temporal | N29: TIEMPO COMPLETO | O29: FOMENTO CONTRATACIÓN INDEFINIDA / EMPLEO ESTABLE
K30: 501 | L30: Temp | M30: Duración Determinada | N30: TIEMPO PARCIAL | O30: OBRA O SERVICIO DETERMINADO
B31: Mes | K31: 502 | L31: Temp | M31: Duración Determinada | N31: TIEMPO PARCIAL | O31: EVENTUAL POR CIRCUNSTANCIAS DE LA PRODUCCIÓN
B32: 7 | C32: Xullo | K32: 503 | L32: Temp | M32: Duración Determinada | N32: TIEMPO PARCIAL | O32: INSERCIÓN
B33: 8 | C33: Agosto | K33: 508 | L33: Temp | M33: Temporal | N33: TIEMPO PARCIAL | P33: CARÁCTER ADMINISTRATIVO
B34: 9 | C34: Setembro | K34: 510 | L34: Temp | M34: Duración Determinada | N34: TIEMPO PARCIAL | O34: INTERINIDAD
B35: 10 | C35: Outubro | K35: 518 | L35: Temp | M35: Duración Determinada | N35: TIEMPO PARCIAL | O35: INTERINIDAD | P35: CARÁCTER ADMINISTRATIVO
B36: 11 | C36: Novembro | K36: 520 | L36: Temp | M36: Temporal | N36: TIEMPO PARCIAL | O36: PRÁCTICAS
B37: 12 | C37: Decembro | K37: 530 | L37: Temp | M37: Temporal | N37: TIEMPO PARCIAL | O37: MINUSVÁLIDOS
B38: 1 | C38: Xaneiro | K38: 540 | L38: Temp | M38: Temporal | N38: TIEMPO PARCIAL | O38: JUBILADO PARCIAL
B39: 2 | C39: Febreiro | K39: 541 | L39: Temp | M39: Temporal | N39: TIEMPO PARCIAL | O39: RELEVO
B40: 3 | C40: Marzo | K40: 550 | L40: Temp | M40: Temporal | N40: TIEMPO PARCIAL | O40: FOMENTO CONTRATACIÓN INDEFINIDA / EMPLEO ESTABLE
B41: 4 | C41: Abril
B42: 5 | C42: Maio
B43: 6 | C43: Xuño

Sheet Contador (hidden)
A2: expediente | B2: 0 | F2: Verdadero

Sheet Campos a Cubrir (hidden)
A1: Este modelo está en formato Excel e, polo tanto, aínda que pode ser cuberta utilizando LibreOffice, debe gardar os cambios no mesmo formato. | I1: I M P O R T A N T E
A3: A continuación describense os campos do formulario con indicación do tipo de campo, a súa descrición, si é un campo autocalculado e si se cubre ou non | I3: Este modelo de folla de cálculo tén celdas ocultas, e celdas con fórmulas (algunhas delas ocultas)
I4: para inserir novas filas ou para borrar información deben terse en conta as seguintes
A5: Campo | C5: Tamaño | D5: Tipo | E5: Descrición | I5: recomendacións:
A6: Nº Exp | C6: 19 | D6: Texto | E6: Nº de Expediente administrativo asignado na convocatoria de axudas
A7: C.E.E. | C7: 50 | D7: Texto | E7: Nome do Centro Especial de Emprego | I7: Borrar información
A8: C.I.F. | C8: 9 | D8: Texto | E8: C.I.F. do Centro Especial de Emprego
A9: Nome da persoa representante | D9: Texto | E9: Nome da persoa representate do Centro Especial de Emprego | I9: No caso de querer borrar a información dunha fila completamente debemos facelo
I10: copiando na fila que queremos borrar a inforación dunha fila que esté totalmente en
A11: Novo Idx | D11: Numérico | E11: Suxire o nº de índice polo que se vincularía a alta dunha nova persoa traballadora | F11: Non se cubre | G11: Autocalculado | I11: blanco, xa que así conservamos a formulas de cálculo ocultas cos seus valores correctos.
A12: Tot. Trab. CEE/RNT | D12: Numérico | E12: Nº de persoas traballadoras que aparecen no RNT do mes que se certifica
A13: Certificación do cadro de persoal do mes de | D13: Texto | E13: lista despregable donde se escolle o mes que se vai a certificar | I13: Para facer esto temos que marcar a fila en blanco a copiar (totalmente) facendo a selección
A14: Certificación comprobada | D14: Texto | E14: lista despregable donde se indica que a certificación esta totalmente correcta | F14: (Por omisión ten o valor "SI") | I14: desde o número indicativo da fila (non desde unha celda), seleccionar a opción de copiar e
A15: Calculo correcto | D15: Texto | E15: lista despregable donde se indica que os calculos feitos son correctos | F15: (Por omisión ten o valor "SI") | I15: posicionarnos a celda que corresponda co Idx/Idn da fila a borrar, e logo pegar a información
I16: seleccionada. Desta maneira aseguramonos de que todas as formulas, ocultas ou non, se
A17: Total Achega Mes | D17: Numérico | E17: Importe total das achegas mensuais solicitadas na certificación | F17: Non se cubre | G17: Autocalculado | I17: copian correctamente na fila que acabamos de borrar
A18: T.c.Vacacións | D18: Numérico | E18: Importe total dos complemento por vacións solicitados na certificación | F18: Non se cubre | G18: Autocalculado
A19: Tot. Trab. Mes | D19: Numérico | E19: Total de traballadores con discapacidade que se relacionan no mes | F19: Non se cubre | G19: Autocalculado | I19: Inserir novas filas para engadir datos de novas persoas traballadoras
A20: Total Certificación mes de | D20: Numérico | E20: total conxunto de todas a achegas e complemento que se relacionan na certificación mensual | F20: Non se cubre | G20: Autocalculado | I20: Para facer insercións correctamente debemos:
A22: Conv. IT | D22: Texto | E22: lista despregable para indicar si os calculos das baixas por enfermidade correspondense co que dispoña a normativa da Seguridade Social ou si hai un convenio colectivo de aplicación específica | F22: (Por omisión ten o valor "NON") | I22: 1º | J22: Seleccionar o rango de filas a inserir e executar o comando
I23: 2º | J23: Seleccionar completamente unha fila con datos cubertos totalmente
A24: Idx / Idn | C24: 3 | D24: Numérico | E24: Indicaría o nº de índice polo que se vincularía á persoa traballadora (é único para cada traballador e contrato de traballo) | J24: (seleccionando desde o número indicativo da fila)
A25: G D | C25: 1 | D25: Numérico | E25: Permite determinar si polo traballador se precibe una subvención do 50 % do SMI ou si se prima cun 10 % adicional determinado na orde de convocatoria de axudas | F25: Non se cubre | G25: Autocalculado | I25: 3º | J25: Escoller o comando copiar
A26: Salario/mes Convenio Colectivo | D26: Numérico | E26: Importe mensual do salario bruto a percibir por cada persoa traballadora | I26: 4º | J26: Pegar nas novas filas en branco a selección anterior para que se restablezan nas
A27: Nº Rexistro ou data publicación C.C. | C27: 3 | D27: Texto | E27: Nº de Rexistro ou data de publicación do convenio colectivo de aplicación ó traballador | J27: novas filas as fórmulas ocultas ou non para poder facer posibles os cálulos)
A28: Traballador | C28: 50 | D28: Texto | E28: Apelidos e nome da persoa traballadora | J28: posicionandonos na celda que corresponda con campo Idx/Idn da nova fila a inserir
A29: D.N.I. | C29: 9 | D29: Texto | E29: Documento Nacional de Identidade da persoa traballadora
A30: Data Nacemento | C30: 6 | D30: Data dd/mm/aa | E30: Data de nacemento | I30: *****
A31: Sexo | C31: 1 | D31: Texto | E31: Sexo | I31: No caso de que nalgunha celda se borrase unha fórmula necesaria para o correcto cálculo da
A32: Discapacidade | C32: 14 | D32: Texto | E32: Tipo de discapacidade. Lista despregable cos seguintes valores (Física, Sensorial, P. Cerebral, Enf. Mental, D. Intelectual, Psíquica) | I32: subvención, sempre se pode repoñer copiando a fórmula correspondente dunha celda que faga
A33: Grao | C33: 4 | D33: Numérico | E33: % de discapacidade do traballador | I33: ese mesmo cálculo para outra persoa traballadora
A34: Tipo | C34: 11 | D34: Texto | E34: lista despregable donde se indica si a discapacidade do traballador é Provisional, Definitiva ou si é Pensionista con consideración de persoa con discapacidade (o contrato debe ser anterior a 29/11/2018)
A35: Data Alta | C35: 6 | D35: Data dd/mm/aa | E35: Data de inicio da relación laboral (data de alta do contrato de traballo)
A36: Data Baixa | C36: 6 | D36: Data dd/mm/aa | E36: Data de finalización da relación laboral (data de baixa do contrato de traballo)
A37: Contrato Código | C37: 3 | D37: Numérico | E37: Lista desplegable. Código do contrato de traballo según a codificación do INSS (*) | H37: (*)No caso de contratos 402 ou 502 débese indicar a data de finalización do mesmo
A38: Contrato Tipo | C38: 4 | D38: Texto | E38: Sinala si o contrato de traballo é de carácter indefinido (Ind) ou temporal (Temp) | F38: Non se cubre | G38: Autocalculado
A39: Rateo | C39: 3 | D39: Texto | E39: Lista despregable de dous valores (Si - Non) Indica si nas retribucións percibidas mensualmente pola persoa traballadora se inclúe ou non a Parte proporcional das Pagas Extraordinarias (só a efectos de clasificación, os cálculos das achegas mensuais xa incluen a p.p. da paga extraordinaria)
A40: % Xornada | C40: 4 | D40: Numérico | E40: % de Xornada da persoa traballadora no mes de inicio do período subvencionable
A41: Tipo de achega | D41: Texto | E41: Indica o tipo de achega que se pericibe por cada traballador, equivalente a porcentaxe do SMI que corresponda segundo o beneficiario mais a parte proporcional da paga extraordinaria que lle corresponda por mes | F41: Non se cubre | G41: Autocalculado
A42: Días | D42: Numérico | E42: Número de días que se solicitan por cada persoa traballadora | F42: Non se cubre | G42: Autocalculado
A43: Achega Mensual | D43: Numérico | E43: Importe da subvención mensual correspondente a cada persoa traballadora | F43: Non se cubre | G43: Autocalculado
A44: % Xornada | D44: Numérico | E44: % de xornada da persoa traballadora correspondente á liquidación do complemento de vacacións | F44: Non se cubre | G44: Autocalculado
A45: Días | D45: Numérico | E45: Número de días que se solicitan por cada persoa traballadora polo complemento de vacacións nos casos de finalización de contratos de traballo e que estas foran cotizadas en non disfrutadas pola persoa traballadora | F45: Non se cubre | G45: Autocalculado
A46: Comp. Vacacións | D46: Numérico | E46: Importe da subvención correspondente ao complemento de vacacións cotizadas en non disfrutadas | F46: Non se cubre | G46: Autocalculado
A47: Certific | D47: Texto | E47: Campo indicativo de que a persoa traballador se inclúe na certificación do mes | F47: Non se cubre | G47: Autocalculado
A48: Días Absentismo | D48: Numérico | E48: Número de días que se descontarán en casos de absentismo
A49: IT AT | D49: Texto | E49: Lista desplebabel de dous valores (IT-AT) donde si indicará si a baixa laboral é por Incapacidade Temporal ou por Accidente de Traballo
A50: Baixa | D50: Data dd/mm/aa | E50: Data de inicio da baixa por enfermidade ou accidente de traballo
A51: Alta | D51: Data dd/mm/aa | E51: Data de finalización da baixa por enfermidade ou accidente de traballo
A52: Conv Baixa | D52: Texto | E52: lista despregable para indicar si, nalgún caso específico e para esa persoa traballadora, os calculos das baixas por enfermidade correspondense co que dispoña a normativa da Seguridade Social ou si hai un convenio colectivo de aplicación específica
A53: Interinidade | D53: Texto | E53: Nº do DNI ou NIF da persoa traballadora sustituida. So se cubre para os contratos 410 e 510
A54: Observacións | D54: Texto
